{"text_format":"1","workbook":"xlsx","n_sheets":9,"sheets":["ReadMe","ENV-SUM","ENV-REQUIREMENTS","ENV-PRESCRIPTIVE","ENV-UA","Target Area Adjustments","TA1","ENV-SHGC","ENV-CHK"],"not_rendered":{"charts":0,"images":4,"macros":1,"external_links":0,"defined_names":109,"comments":1,"pivot_tables":0},"unopened":[],"bounds":{"document_bytes":16777216,"sheet_cells":100000,"rows_first":2000,"rows_last":500,"rows_between":2000,"halvings":0,"cell_chars":16384,"cell_head_chars":4096},"cells_cut":0,"cells_raw":0,"read":"whole","date_system":"1900"}

{"sheet":"ReadMe","index":0,"n_rows":42,"n_cols":2,"rows_kept":42,"cut":false,"hidden":false,"merged":[[1,0,1,1],[5,0,6,0],[9,0,10,0],[13,0,19,0],[41,0,41,1],[27,0,27,1],[29,0,30,0],[31,0,32,0],[35,0,38,0],[39,0,40,0]]}
["Instructions for Electronic Forms, pg 1"]
["2012 Seattle Energy Code Compliance Forms for Commercial Buildings including R2 & R3 over 3 stories and all R1 "]
[null,"Revised Apr 2015"]
[null,"     Commercial Provision Chapters 1 - 5 of the 2012 Seattle Energy Code apply to all commercial occupancies, R-2 and R-3 occupancies greater than 3 stories above grade, and R-1 occupancy (all building heights)."]
["Intro","     This file, 2012sec-ENV-v1.XLSM, has electronic compliance forms for envelope provisions as defined in Sections C101, C303, C402 and Appendix A for Climate Zones 4c and 5b. There are two companion files: 2012sec-LTG-v1.XLSM (Section C405 lighting, motor, and transformer requirements), and 2012sec-MECH-v1.XLSM (Section C403 mechanical systems requirements). "]
["Energy Code ","    This form is a compliance aid and is not a substitute for the full energy code text or specific jurisdiction compliance requirements. Users should refer to the code text and contact the DPD for complete information. The full 2012 Seattle Energy Code text is available for download from the Seattle DPD website:"]
[null,"http://www.seattle.gov/DPD/codesrules/codes/energy/overview/"]
["Training ","There are no explicity training materials for these forms.  Refer to the NEEC website (www.neec.net) for instruction on how to complete the 2012 WSEC Compliance Forms which are very similar."]
["Start-up","Select this file from the DPD website to download to your computer.  When opening the file be sure to Enable Macros. "]
["Overview ","     This file is an Excel workbook that contains multiple compliance forms and resources in Excel worksheets. Each worksheet is indicated by a tab at the bottom of the screen. You may visit each worksheet by selecting it's tab.  "]
[null,"     Most calculations are automated. Cells that display informational text and the results of calculations are write-protected and cannot be edited. "]
["Save Files ","This file is saved in the same manner as any standard Excel file.   "]
["Getting Around","     Some forms have two pages. Both pages are available on screen when you select the tab for a form (worksheet). Use the scroll bars to find the second page located below the first page."]
["Input Cells ","     All general project information and the date are entered once on ENV-SUM. This information is automatically replicated on all other ENV forms. The ENV-SUM form accompanies all other ENV forms."]
[null,"     Only input cells are accessible. If you try to edit a write-protected cell an error message will appear requesting a password.  A password IS NOT required to complete these forms. You may use the TAB key to move to the next input cell. If the TAB doesn't take you where you want to go, use your mouse to move around the form. "]
[null,"     Avoid excessively long text strings when entering information. In some cases, text that extends beyond the available space will not be visible. In most cases the text will wrap within the cell. This may force part of the form onto a new page."]
[null,"     To enter the date, use this format: mm/dd/yyyy.  For example, you would enter 7/1/2013 or 12/21/2014."]
[null,"     Check boxes can be checked or unchecked by clicking in the box with your mouse. Radio buttons (circles) allow only one in a set to be selected."]
[null,"     Drop-down lists have an arrow at the right side of the cell. Click on the arrow with your mouse and select the appropriate option. Use the delete button on your computer to clear a drop-down entry."]
[null,"     When a form has a space for notes or explanation, click anywhere in the space to edit. "]
["Personalizing","     You can personalize the forms with your company name, address, phone, or any other information. This is done by editing the header or footer in Excel."]
["Adding Lines and","     Many tables, such as for listing envelope assembly types, have a certain number of lines available for entering data. You may need more lines to enter all your information. Where this feature is available, you can add additional lines to the table by selecting the \"+\" button on the right hand side of the table with your mouse. If you can't see the \"+\" button, scroll to the right or increase the View Zoom setting for the worksheet.  "]
["Removing","     To remove lines that you have added, select the \"-\" button with your mouse. You cannot remove lines that were not added; an error message will appear if you try."]
[null,"     If you add additional lines with this method, the pagination may be affected forcing the forms to carry additional lines over to other pages.  Be sure to submit all pages to the plans examiner."]
["Compliance Path","    You must select a Compliance Path on ENV-SUM (line 12) to activate the correct input method for Window-to-Wall and Skylight-to-Roof ratios."]
["Occupancy Group","    You must select an Occupancy Group on ENV-SUM (line 14) for this workbook to display the correct code requirements and automatically calculate component performance target UA values."]
["Instructions for Electronic Forms, pg 2"]
[{"$f":"A2","v":"2012 Seattle Energy Code Compliance Forms for Commercial Buildings including R2 & R3 over 3 stories and all R1 "}]
[null,{"$f":"B3","v":"Revised Apr 2015"}]
["Fenestration Area ","     For projects complying via the Prescriptive Path, enter the vertical fenestration area, gross wall area (includes vertical fenestration, doors, etc), skylight area and gross roof area (includes skylights, mechanical equipment curbs, etc) directly into the Vertical Fenestration and Skylight Area Calculation input cells on the ENV-SUM form. The form will calculate the Window-to-Wall and Skylight-to-Roof ratios.  "]
[null,"     For projects complying via the Component Performance Path, the Vertical Fenestration and Skylight Area inputs in the ENV-SUM form are write protected. Enter all applicable envelope information in the ENV-UA form. The resulting Window-to-Wall and Skylight-to-Roof ratios will auto fill into the ENV-SUM form from the ENV-UA form."]
["Vertical Fenestration Alternates ","     The prescriptive vertical fenestration target area is 30%. This target increases to 40% if the project complies with the requirements of either C402.3.1.1 50% floor area within the daylight zone, or C402.3.1.3 high performance vertical fenestration. "]
[null,"     If the project is eligible for one of these alternates, select the corresponding button on Line 24 of the ENV-SUM form. This will re-calculate the prescriptive target area in the ENV-SUM and ENV-UA forms based on 40%. "]
["Street Level Retail","    For projects utilizing the Street Level Retail (SLR) exception in Section C402.3.1, indicate the SLR on ENV-SUM.  Enter the gross wall area qualifying for the SLR exception.  Enter the fenestration area within the SLR wall.  The glazing allowance that must be transferred from other building areas to the SLR, if any, is automatically calculated.  Do NOT include SLR wall area or SLR fenestration area in the ENV-SUM Vertical Fenestration calculation or on ENV-UA.  The SLR wall and fenestration must meet prescriptive code requirements, and may not use the component performance option.   "]
["Target Area Adjustment","     Target Area Adjustment is required if the project exceeds the prescriptive target area for vertical fenestration or skylights. Adjusted target areas are automatically calculated in the ENV-UA form using envelope assembly areas you enter for your project. Adjusted target areas will appear in the Target UA column in the ENV-UA form. Refer to Target Area Adjustment worksheet for the supporting calculations."]
["Printing ","     The forms should print on any printer supported by your operating system. You will need to have the following TrueType fonts installed under Windows:  Arial, Times New Roman, Courier New and Wingdings.  These are all standard Windows fonts."]
[null,"     If you are losing form details when printing, you may have a shortage of printer memory. Try printing problem pages individually."]
[null,"     By default, only the active worksheet is printed. To print more than one worksheet at a time, open your print set-up menu and select either the page range you wish to print or Entire Workbook."]
[null,"     Forms (worksheets) in a workbook may not be deleted because the file is locked."]
["Blank Forms ","    To print blank forms to fill out by hand, delete all of the heading information at the beginning of ENV-SUM and select the desired Occupancy Group."]
[null,"     For each radio button group there is a button labeled \"Clear.\" Clicking this button will clear the other buttons so that they will print as empty circles.  The \"Clear\" button will not print."]
["End of Instructions for Electronic Forms"]

{"sheet":"ENV-SUM","index":1,"n_rows":42,"n_cols":8,"rows_kept":42,"cut":false,"hidden":false,"merged":[[15,0,15,3],[15,4,15,5],[35,0,36,1],[35,2,36,6],[24,3,24,6],[25,3,25,6],[24,0,25,1],[27,0,27,1],[33,0,33,1],[29,0,30,1]]}
["Envelope Summary",null,null,null,{"$f":"'TA1'!$C$118","v":" "},null,"ENV-SUM"]
[{"$f":"ReadMe!A2","v":"2012 Seattle Energy Code Compliance Forms for Commercial Buildings including R2 & R3 over 3 stories and all R1 "},null,null,null,null,null,{"$f":"ReadMe!B3","v":"Revised Apr 2015"}]
["Project Info","Project Address","1 - This address line will copy onto other forms",null,null,"Date","2014-01-01"]
[null,null,null,null,null,"For DPD Use"]
[]
[null,"Applicant Name:"]
[null,"Applicant Address:"]
[null,"Applicant Phone:"]
[]
["Project Description"]
[]
["Compliance Path"]
[]
["Occupancy Group"]
[]
["Maximum Prescriptive Vertical Fenestration (%)",null,null,null,{"$f":"IF(AND(ComponentPath<4,OccGroup<3),IF(SLR>1,IF(VertFenAlt=1,\"40% per C402.3.1.3\",IF(VertFenAlt=2,\"40% per C402.3.1.1\",\"30% per C402.3.1\")),IF(VertFenAlt=1,\"40% per C402.3.1.3 adjusted for SLR transfer\",IF(VertFenAlt=2,\"40% per C402.3.1.1 adjusted for SLR transfer\",\"30% per C402.3.1 adjusted for SLR transfer\"))),\"Set Compliance Path and Occupancy Group\")","v":"Set Compliance Path and Occupancy Group"},null,{"$f":"IF(AND(ComponentPath<4,OccGroup<3),IF(SLR>1,IF(VertFenAlt=3,0.3,0.4),TargetMaxVF),\"\")","v":""}]
[]
[null,null,"Total Vertical Fenestration\n(rough opening)","divided by","Gross Exterior Above Grade\nWall Area","\ntimes 100 equals","\n% Vertical Fenestration"]
[null,null,null,"¸",null,"X 100 =",{"$f":"IF(C19=\"Path?\",\"Path?\",IF(E19>0,C19/E19,\"\"))","v":""}]
[null,null,"Total Skylight","divided by","Gross Exterior Roof Area","\ntimes 100 equals","\n% Skylight"]
[null,null,null,"¸",null,"X 100 =",{"$f":"IF(C21=\"Path?\",\"Path?\",IF(E21>0,C21/E21,\"\"))","v":""}]
[]
["Exempt Single Glass",null,"Area"]
[]
["Fenestration Area Compliance",null,"Vertical Fenestration Area",{"$f":"IF(AND(ComponentPath<>4,OccGroup<>3),IF(SLRerror,IF(SLRwindow>SLRwall,\"SLR window area must be less than gross SLR wall area\",\"Street level window area exceeds allowance of 75% of qualified gross wall plus transfered glazing area\"),IF(ISNUMBER(G19),IF(D23*100>E19,\"DOES NOT COMPLY.  NO MORE THAN 1% OF GROSS WALL MAY BE EXEMPT GLASS\",IF(G19<=G16,\"VERTICAL FENESTRATION AREA COMPLIES\",IF(OR(dlz50pct=1,hpfwin=1),IF(ComponentPath=1,\"Project exceeds maximum vertical fenestration area for Prescriptive compliance.  Comply via Component Performance with Target Area Adjustment.\",IF(ComponentPath=2,\"Project exceeds maximum target vertical fenestration area.  Target area adjustment applied to UA calculation.\",\"\")),IF(ComponentPath=1,\"Project exceeds maximum vertical fenestration area for Prescriptive compliance.  Comply via 50% DLZ Option (C402.3.1.1), High Performance Window Option (C402.3.1.3), or Component Performance with Target Area Adjustment.\",IF(ComponentPath=2,\"Project exceeds maximum target vertical fenestration area.  Target area adjustment applied to UA calculation.  May comply via 50% DLZ Option (C402.3.1.1) or High Performance Window Option (C402.3.1.3).\",\"\"))))),\"\")),IF(OR(ISNUMBER(G19),ISNUMBER(G21)),\"Set Compliance Path and Occupancy Group\",\"\"))","v":""}]
[null,null,"Skylight Area",{"$f":"IF(AND(ComponentPath<>4,OccGroup<>3),IF(ISNUMBER(G21),IF(G21>0.05,IF(ComponentPath=1,\"Project exceeds maximum skylight area for Prescriptive compliance.  Comply via Component Performance with Target Area Adjustment.\",IF(ComponentPath=2,\"Project exceeds target skylight area.  Target area adjustment applied to UA calculation.\",\"\")),IF(G21>=0,\"SKYLIGHT AREA COMPLIES\",\"\")),\"\"),IF(OR(ISNUMBER(G19),ISNUMBER(G21)),\"Set Compliance Path and Occupancy Group\",\"\"))","v":""}]
[]
["Vertical Fenestration Alternates"]
[]
["Street Level Retail",null,null,null,null,null,"n/a"]
[null,null,null,null,null,null,"n/a"]
[null,null,null,null,null,null,{"$f":"IF(SLR=1,MAX(0,SLRwindow-0.75*SLRwall),\"n/a\")","v":"n/a"},{"$f":"IF(SLR=1,IF(OR(SLRwindow>SLRwall,SLRwindow>0.75*SLRwall+SLRtransfer),TRUE,FALSE),FALSE)","v":false}]
[]
["Single Story Spaces Requiring Skylights"]
[]
["Semi-Heated Spaces"]
[]
[]
["Refrigerated Spaces"]
[]
["Mixed Occupancy and/or "]
["Space Conditioning"]

{"sheet":"ENV-REQUIREMENTS","index":2,"n_rows":72,"n_cols":6,"rows_kept":72,"cut":false,"hidden":false,"merged":[[12,2,12,3],[54,0,54,1],[59,0,59,1],[71,0,71,5],[37,2,37,3],[37,4,37,5],[39,0,39,1],[39,2,39,3],[39,4,39,5],[47,2,47,3],[48,2,48,3],[49,2,49,3],[50,2,50,3],[41,4,45,5],[45,2,45,3],[46,0,46,5],[47,4,51,5],[51,2,51,3],[41,2,41,3],[42,2,42,3],[43,2,43,3],[44,2,44,3],[40,0,40,5],[36,2,36,5],[38,0,38,1],[38,2,38,3],[38,4,38,5],[28,0,28,1],[28,2,28,5],[29,2,29,5],[34,0,34,1],[36,0,36,1],[27,0,27,1],[16,0,16,1],[16,2,16,3],[17,0,17,1],[21,0,21,1],[22,2,22,3],[23,2,23,3],[24,0,24,1],[24,2,24,5],[25,2,25,3],[27,2,27,3],[27,4,27,5],[26,2,26,3],[11,0,11,1],[4,2,4,3],[4,4,4,5],[6,0,6,1],[6,2,6,5],[7,0,7,1]]}
["Envelope Requirements Summary, pg 1",null,null,null,{"$f":"'TA1'!$C$118","v":" "},"ENV-REQ"]
[{"$f":"ReadMe!A2","v":"2012 Seattle Energy Code Compliance Forms for Commercial Buildings including R2 & R3 over 3 stories and all R1 "},null,null,null,null,{"$f":"ReadMe!B3","v":"Revised Apr 2015"}]
["Minimum Requirements"]
["for Prescriptive Compliance"]
[null,"Prescriptive Path"," Table C402.2 Notes 1,7\nInsulation Minimum R-Value",null,"Table C402.1.2 Notes 1,2\nAssembly Maximum U-factor"]
[null,"Occupancy Group  ","All Other","Group R","All Other","Group R"]
["Opaque Elements"]
["Roofs"]
[null,"Insulation Entirely above Deck","R-38 c.i.","R-38 c.i.","U-0.026","U-0.026"]
[null,"Metal Building (with R-3.5 thermal blocks) Note 3","R-25 + R-22 Ls","R-25 + R-22 Ls","U-0.027","U-0.027"]
[null,"Attic and Other","R-49","R-49","U-0.021","U-0.021"]
["Walls, Above-grade"]
[null,"Mass","Ext: R-16 c.i. (ext)\nInt: R-13+R6 c.i. (wd)\nInt: R-13+R10 c.i. (mtl)",null,"U-0.057","U-0.057"]
[null,"Metal Building","R-13 + R-13 c.i.","R-13 + R-13 c.i.","U-0.052","U-0.052"]
[null,"Steel Framed","R-13 + R-10c.i.","R-19 + R-8.5 c.i.","U-0.055","U-0.055"]
[null,"Wood Framed and Other","R13 + R7.5 c.i.","R-21 int","U-0.051","U-0.051"]
["Below Grade Wall Note 4",null,"Ext: R-10 c.i. (ext)\nInt: R-19 (wd)\nInt: R-13+R6 c.i. (mtl)",null,"U-0.070","U-0.070"]
["Floors"]
[null,"Mass","R-30 c.i.","R-30 c.i.","U-0.029","U-0.029"]
[null,"Steel Joist","R-38 + R-4 c.i.","R-38 + R-4 c.i.","U-0.029","U-0.029"]
[null,"Wood Framed and Other","R-38","R-38","U-0.025","U-0.025"]
["Slab-On-Grade Floors"]
[null,"Unheated","R-10 for 24 in. (from top of slab)",null,"F-0.520","F-0.520"]
[null,"Heated  Note 5","R-10 perimeter & under entire slab",null,"F-0.550","F-0.550"]
["Opaque Doors"]
[null,"Swinging","No R-Value for prescriptive compliance.",null,"U-0.37","U-0.37"]
[null,"Roll-up or sliding","No R-Value for prescriptive compliance.",null,"U-0.39","U-0.39"]
[null,null,"Table C402.3 - 0-30% of wall area, or\n30%-40% per Section C402.3.1.1 DLZ",null,"Section C402.3.1.3 High Performance Fenestration Option - 0-40% of wall area"]
["Fenestration ",null,"Assembly Maximum U-factor Notes 1,2"]
["Vertical Fenestration"]
[null,"Nonmetal framing ","U-0.30","U-0.30","U-0.28","U-0.28"]
[null,"Metal framing (fixed)","U-0.38","U-0.38","U-0.34","U-0.34"]
[null,"Metal framing (operable)","U-0.40","U-0.40","U-0.36","U-0.36"]
[null,"Entrance doors","U-0.60","U-0.60","U-0.60","U-0.60"]
["Skylights"]
[null,"Skylights","U-0.45","U-0.45","U-0.45","U-0.45"]
["Fenestration",null,"Assembly Maximum SHGC Factor"]
["Vertical Fenestration",null,"PF < 0.2: all orientations - SHGC-0.35\n0.2 ≤ PF < 0.5: north - SHGC-0.385; \nall other - SHGC-0.42\nPF ≥ 0.5: north - SHGC-0.42; \nall other - SHGC-0.56",null,"PF < 0.2: all orientations - SHGC-0.35\n0.2 ≤ PF < 0.5: north - SHGC-0.385; \nall other - SHGC-0.42\nPF ≥ 0.5: north - SHGC-0.42; \nall other - SHGC-0.56"]
["Skylights",null,"SHGC-0.32",null,"SHGC-0.32"]
["Refrigerated Spaces Insulation",null,"Insulation Minimum R-Value \nTable C402.5 and C402.6",null,"Assembly Maximum U-factor "]
["Freezers - Walk-in and Warehouse"]
[null,"Roof / Ceiling","R-32",null,"No U-Value for prescriptive compliance"]
[null,"Wall","R-32"]
[null,"Door","R-32"]
[null,"Door - transparent reach-in","triple-pane, heat-reflective treated or gas fill"]
[null,"Floor","R-28"]
["Coolers - Walk-in and Warehouse"]
[null,"Roof / Ceiling","R-25",null,"No U-Value for prescriptive compliance"]
[null,"Wall","R-25"]
[null,"Door","R-25"]
[null,"Door - transparent reach-in","double-pane, heat-reflective treated & gas fill, or comply with freezer door req."]
[null,"Floor","No Requirement"]
["Envelope Requirements Summary, pg 2 ",null,null,null,null,"ENV-REQ"]
[{"$f":"A2","v":"2012 Seattle Energy Code Compliance Forms for Commercial Buildings including R2 & R3 over 3 stories and all R1 "},null,null,null,null,{"$f":"F2","v":"Revised Apr 2015"}]
["Definitions:"]
[]
[]
[]
[]
["Footnote Summary:"]
[]
[]
[]
[]
[]
[]
[]
[]
[]
[]
[]
["End of Envelope Requirements Summary"]

{"sheet":"ENV-PRESCRIPTIVE","index":3,"n_rows":111,"n_cols":13,"rows_kept":111,"cut":false,"hidden":false,"merged":[[110,4,110,6],[111,4,111,6],[107,0,107,2],[108,0,108,2],[107,7,107,8],[108,7,108,8],[110,0,110,2],[109,0,109,2],[110,7,110,8],[111,7,111,8],[102,0,102,2],[103,0,103,2],[104,0,104,2],[105,0,105,2],[106,0,106,2],[102,7,102,8],[103,7,103,8],[104,7,104,8],[105,7,105,8],[106,7,106,8],[55,4,55,6],[55,7,55,8],[8,7,8,8],[109,7,109,8],[71,7,71,8],[101,0,101,4],[71,4,71,6],[102,4,102,6],[103,4,103,6],[104,4,104,6],[105,4,105,6],[106,4,106,6],[107,4,107,6],[108,4,108,6],[109,4,109,6],[8,4,8,6]]}
["Prescriptive Path, pg. 1",null,null,null,null,{"$f":"'TA1'!$C$118","v":" "},null,null,"ENV-PRESCRIPTIVE"]
[{"$f":"'ENV-SUM'!A2","v":"2012 Seattle Energy Code Compliance Forms for Commercial Buildings including R2 & R3 over 3 stories and all R1 "},null,null,null,null,null,null,null,{"$f":"'ENV-SUM'!G2","v":"Revised Apr 2015"}]
[{"$f":"'ENV-SUM'!B3","v":"Project Address"},null,null,null,{"$f":"IF('ENV-SUM'!$C$3=\"1 - This address line will copy onto other forms\",\"1 - Fill this line out on ENV-SUM\",'ENV-SUM'!$C$3)","v":"1 - Fill this line out on ENV-SUM"},null,null,"Date",{"$f":"TEXT('ENV-SUM'!$G$3,\"mm/dd/yyyy\")","v":"01/01/2014"}]
["Occupancy Group",null,null,null,null,null,null,"For Building Department Use"]
["Fenestration Area as % gross above-grade wall area",null,null,null,{"$f":"IF('ENV-SUM'!G19>0,'ENV-SUM'!G19,0)","v":""},"Max. Target:",{"$f":"'TA1'!J27","v":""}]
["Skylight Area as % gross roof area",null,null,null,{"$f":"IF('ENV-SUM'!G21>0,'ENV-SUM'!G21,0)","v":""},"Max. Target:",{"$f":"'TA1'!D80","v":0}]
["Vertical Fenestration Alternates:",null,null,null,{"$f":"'TA1'!B111","v":"None Selected on ENV-SUM"}]
[]
["Building Component ",null,null,null,"R-Value for Prescriptive Compliance",null,null,"U-Factor/F-Factor for Alternative Prescriptive Compliance"]
[null,null,null,"Provide page/plan # of assembly detail and ID.","Cavity Ins.\nR-Value","Continuous Ins. (CI)\nR-Value","Alternate CI\nR-Value\n(Table C402.2 Footnote F)1","Assembly \nU-Factor","U-Factor Source\n(Appendix A, Chapter 3 table, or approved calculation method) "]
[null,null,"ID:"]
[null,null,"ID:"]
[null,null,"ID:",null,null,null,null,null,null,null,null,null,0]
[null,null,"ID:"]
[null,null,"ID:"]
[null,null,"ID:"]
[null,null,"ID:"]
[null,null,"ID:"]
[null,null,"ID:"]
[null,null,"ID:"]
[null,null,"ID:"]
[null,null,"ID:"]
[null,null,"ID:"]
[null,null,"ID:"]
[null,null,"ID:"]
[null,null,"ID:"]
[null,null,"ID:"]
[null,null,"ID:"]
[null,null,"ID:"]
[null,null,"ID:"]
[null,null,"ID:"]
[null,null,"ID:"]
[null,null,"ID:"]
[null,null,"ID:"]
[null,null,"ID:"]
[null,null,"ID:"]
[null,null,"ID:"]
[null,null,"ID:"]
[null,null,"ID:"]
[null,null,"ID:"]
[null,null,"ID:",null,null,null,null,null,null,null,null,null,0]
[null,null,"ID:"]
[null,null,"ID:"]
[null,null,"ID:",null,null,null,null,null,null,null,null,null,0]
[]
[]
[]
[]
[]
["Prescriptive Path, pg. 2",null,null,null,null,{"$f":"'TA1'!$C$118","v":" "},null,null,"ENV-PRESCRIPTIVE"]
[{"$f":"A2","v":"2012 Seattle Energy Code Compliance Forms for Commercial Buildings including R2 & R3 over 3 stories and all R1 "},null,null,null,null,null,null,{"$f":"'ENV-SUM'!E75","v":0},{"$f":"I2","v":"Revised Apr 2015"}]
[{"$f":"'ENV-SUM'!B3","v":"Project Address"},null,null,null,{"$f":"E3","v":"1 - Fill this line out on ENV-SUM"},null,null,"Date",{"$f":"I3","v":"01/01/2014"}]
["Fenestration Area as % gross above-grade wall area",null,null,null,{"$f":"E5","v":""},"Max. Target:",{"$f":"G5","v":""},"For Building Department Use"]
["Skylight Area as % gross roof area",null,null,null,{"$f":"E6","v":""},"Max. Target:",{"$f":"G6","v":0}]
[]
["Building Component ",null,null,null,"R-Value for Prescriptive Compliance",null,null,"U-Factor/F-Factor for Alternative Prescriptive Compliance"]
[null,null,null,"Provide page/plan # of assembly detail and ID.","Perim. Ins.\nR-Value","Full Slab CI\nR-Value",null,"F-Factor","F-Factor Source"]
[null,null,"ID:"]
[null,null,"ID:"]
[null,null,"ID:"]
[null,null,"ID:"]
[null,null,"ID:"]
[null,null,"ID:",null,null,null,null,null,null,null,null,null,0]
[null,null,null,"Provide page/plan # of assembly detail and ID.",null,null,null,"Assembly\nU-Factor","U-Factor Source\n(Appendix A, or approved calculation method) "]
[null,null,"ID:"]
[null,null,"ID:"]
[null,null,"ID:"]
[null,null,"ID:"]
[null,null,"ID:"]
[null,null,"ID:"]
[]
[null,null,null,null,"Solar Heat Gain Coefficient (SHGC)",null,null,"U-Factor for Prescriptive Compliance"]
[null,null,null,"Provide page/plan # of assembly detail and ID.","Projection factor (PF)\n (if applicable)","SHGC Adjustment Multiplier (if applicable)","Assembly\nSHGC","Assembly\nU-Factor","U-Factor Source\n(NFRC, Appendix A, or Chapter 3 table) "]
[null,null,"ID:"]
[null,null,"ID:"]
[null,null,"ID:"]
[null,null,"ID:"]
[null,null,"ID:"]
[null,null,"ID:"]
[null,null,"ID:"]
[null,null,"ID:"]
[null,null,"ID:"]
[null,null,"ID:"]
[null,null,"ID:"]
[null,null,"ID:"]
[null,null,"ID:"]
[null,null,"ID:"]
[null,null,"ID:"]
[null,null,"ID:"]
[null,null,"ID:"]
[null,null,"ID:"]
[null,null,"ID:"]
[]
[]
[]
["Prescriptive Path, pg. 3",null,null,null,null,{"$f":"'TA1'!$C$118","v":" "},null,null,"ENV-PRESCRIPTIVE"]
[{"$f":"A2","v":"2012 Seattle Energy Code Compliance Forms for Commercial Buildings including R2 & R3 over 3 stories and all R1 "},null,null,null,null,null,null,{"$f":"'ENV-SUM'!E122","v":0},{"$f":"I49","v":0}]
[{"$f":"A3","v":"Project Address"},null,null,null,{"$f":"E3","v":"1 - Fill this line out on ENV-SUM"},null,null,"Date",{"$f":"I3","v":"01/01/2014"}]
["Fenestration Area as % gross above-grade wall area",null,null,null,{"$f":"E5","v":""},"Max. Target:",{"$f":"G5","v":""},"For Building Department Use"]
["Skylight Area as % gross roof area",null,null,null,{"$f":"E6","v":""},"Max. Target:",{"$f":"G6","v":0}]
[]
["Refrigerated Spaces, Walk-in & Warehouse"]
["Coolers",null,null,"Notes"," R-Values for Prescriptive Compliance",null,null,"Prescriptive U-Factor not allowed."]
["Walls"]
["Ceiling"]
["Doors"]
["Freezers"]
["Walls"]
["Ceiling"]
["Doors"]
["Floor"]

{"sheet":"ENV-UA","index":4,"n_rows":98,"n_cols":13,"rows_kept":98,"cut":false,"hidden":false,"merged":[]}
["Component Performance Path, pg. 1",null,null,null,null,null,null,null,null,{"$f":"'TA1'!$C$118","v":" "},null,"ENV-UA"]
[{"$f":"'ENV-SUM'!A2","v":"2012 Seattle Energy Code Compliance Forms for Commercial Buildings including R2 & R3 over 3 stories and all R1 "},null,null,null,null,null,null,null,null,null,null,{"$f":"'ENV-SUM'!G2","v":"Revised Apr 2015"}]
[{"$f":"'ENV-SUM'!B3","v":"Project Address"},null,null,null,null,{"$f":"IF('ENV-SUM'!$C$3=\"1 - This address line will copy onto other forms\",\"1 - Fill this line out on ENV-SUM\",'ENV-SUM'!$C$3)","v":"1 - Fill this line out on ENV-SUM"},null,null,null,"Date",{"$f":"TEXT('ENV-SUM'!$G$3,\"mm/dd/yyyy\")","v":"01/01/2014"}]
["Occupancy Group",null,null,null,null,null,null,null,null,"For Building Department Use"]
["Change in occupancy or space conditioning"]
["Fenestration Area as % gross above-grade wall area",null,null,null,null,null,{"$f":"IF('ENV-SUM'!G19>0,'ENV-SUM'!G19,0)","v":""},"Max. Target:",{"$f":"'TA1'!J27","v":""}]
["Skylight Area as % gross roof area",null,null,null,null,null,{"$f":"IF('ENV-SUM'!G21>0,'ENV-SUM'!G21,0)","v":""},"Max. Target:",{"$f":"'TA1'!D80","v":0}]
["Vertical  Fenestration Alternates:",null,null,null,null,null,{"$f":"'TA1'!B111","v":"None Selected on ENV-SUM"}]
[]
["Building Component ",null,null,null,null,null,null,"Proposed UA",null,"Target UA"]
[null,"Provide source of U-factor, page/plan # of assembly detail & ID",null,null,null,null,"U-factor","x Area (A)","= UA (U x A)","U-factor","x Area (A) =","UA (U x A)"]
[null,null,"R=",null,"ID:",null,null,null,{"$f":"IF(AND(G12=0,H12=0),0,IF(OR(G12=0,H12=0),NA(), H12*G12))","v":0},{"$f":"'TA1'!U108","v":"set occ."},{"$f":"'TA1'!J97","v":0},{"$f":"IF(TYPE(J12*K12)<>1,0,J12*K12)","v":0}]
[null,null,"R=",null,"ID:",null,null,null,0,"Above Deck Insulation",null,{"$f":"'TA1'!U140","v":"set occ."}]
[null,null,"R=",null,"ID:",null,null,null,0,null,null,null,0]
[null,null,"R=",null,"ID:",null,null,null,0,{"$f":"'TA1'!U109","v":"set occ."},{"$f":"'TA1'!J98","v":0},{"$f":"IF(TYPE(J15*K15)<>1,0,J15*K15)","v":0}]
[null,null,"R=",null,"ID:",null,null,null,0,"Metal Building",null,{"$f":"'TA1'!U141","v":"set occ."}]
[null,null,"R=",null,"ID:",null,null,null,0]
[null,null,"R=",null,"ID:",null,null,null,0,{"$f":"'TA1'!U110","v":"set occ."},{"$f":"'TA1'!J99","v":0},{"$f":"IF(TYPE(J18*K18)<>1,0,J18*K18)","v":0}]
[null,null,"R=",null,"ID:",null,null,null,0,"Single raft, attic, other",null,{"$f":"'TA1'!U142","v":"set occ."}]
[null,null,"R=",null,"ID:",null,null,null,0]
[null,null,"R=",null,"ID:",null,null,null,{"$f":"IF(AND(G21=0,H21=0),0,IF(OR(G21=0,H21=0),NA(), H21*G21))","v":0},{"$f":"'TA1'!U114","v":"set occ."},{"$f":"'TA1'!J49","v":0},{"$f":"IF(TYPE(J21*K21)<>1,0,J21*K21)","v":0}]
[null,null,"R=",null,"ID:",null,null,null,{"$f":"IF(AND(G22=0,H22=0),0,IF(OR(G22=0,H22=0),NA(), H22*G22))","v":0},"Steel/metal frame",null,{"$f":"'TA1'!U146","v":"set occ."}]
[null,null,"R=",null,"ID:",null,null,null,0]
[null,null,"R=",null,"ID:",null,null,null,0,{"$f":"'TA1'!U113","v":"set occ."},{"$f":"'TA1'!J50","v":0},{"$f":"IF(TYPE(J24*K24)<>1,0,J24*K24)","v":0}]
[null,null,"R=",null,"ID:",null,null,null,0,"Metal Building",null,{"$f":"'TA1'!U145","v":"set occ."}]
[null,null,"R=",null,"ID:",null,null,null,0]
[null,null,"R=",null,"ID:",null,null,null,0,{"$f":"'TA1'!U115","v":"set occ."},{"$f":"'TA1'!J51","v":0},{"$f":"IF(TYPE(J27*K27)<>1,0,J27*K27)","v":0}]
[null,null,"R=",null,"ID:",null,null,null,0,"Wood Frame, other",null,{"$f":"'TA1'!U147","v":"set occ."}]
[null,null,"R=",null,"ID:",null,null,null,0]
[null,null,"R=",null,"ID:",null,null,null,0,{"$f":"'TA1'!U112","v":"set occ."},{"$f":"'TA1'!J52","v":0},{"$f":"IF(TYPE(J30*K30)<>1,0,J30*K30)","v":0}]
[null,null,"R=",null,"ID:",null,null,null,0,"Mass Wall",null,{"$f":"'TA1'!U144","v":"set occ."}]
[null,null,"R=",null,"ID:",null,null,null,0]
[null,null,"R=",null,"ID:",null,null,null,0,{"$f":"'TA1'!U123","v":"set occ."},{"$f":"SUM(H33:H35)","v":0},{"$f":"IF(TYPE(J33*K33)<>1,0,J33*K33)","v":0}]
[null,null,"R=",null,"ID:",null,null,null,0,"Below Grade Wall",null,{"$f":"'TA1'!U155","v":"set occ."}]
[null,null,"R=",null,"ID:",null,null,null,0]
[null,null,"R=",null,"ID:",null,null,null,0,{"$f":"'TA1'!U117","v":"set occ."},{"$f":"SUM(H36:H38)","v":0},{"$f":"IF(TYPE(J36*K36)<>1,0,J36*K36)","v":0}]
[null,null,"R=",null,"ID:",null,null,null,0,"Mass Floor",null,{"$f":"'TA1'!U149","v":"set occ."}]
[null,null,"R=",null,"ID:",null,null,null,0]
[null,null,"R=",null,"ID:",null,null,null,0,{"$f":"'TA1'!U120","v":"set occ."},{"$f":"SUM(H39:H41)","v":0},{"$f":"IF(TYPE(J39*K39)<>1,0,J39*K39)","v":0}]
[null,null,"R=",null,"ID:",null,null,null,0,"Metal Joist/Framing",null,{"$f":"'TA1'!U152","v":"set occ."}]
[null,null,"R=",null,"ID:",null,null,null,0]
[null,null,"R=",null,"ID:",null,null,null,0,{"$f":"'TA1'!U119","v":"set occ."},{"$f":"SUM(H42:H44)","v":0},{"$f":"IF(TYPE(J42*K42)<>1,0,J42*K42)","v":0}]
[null,null,"R=",null,"ID:",null,null,null,0,"Wood Joist/Framing",null,{"$f":"'TA1'!U151","v":"set occ."}]
[null,null,"R=",null,"ID:",null,null,null,0]
[]
[null,null,null,null,null,null,null,"Area","UA",null,"Area","UA"]
[null,null,null,null,null,null,null,{"$f":"SUM(H12:H44)","v":0},{"$f":"SUM(I12:I44)","v":0},null,{"$f":"K42+K39+K36+K33+K30+K27+K24+K21+K18+K15+K12","v":0},{"$f":"L42+L39+L36+L33+L30+L27+L24+L21+L18+L15+L12","v":0}]
[]
["Component Performance Compliance (UA)",null,null,null,null,null,null,null,null,null,null,{"$f":"L98","v":"Occupancy Group not selected"}]
["Component Performance Path, pg. 2",null,null,null,null,null,null,null,null,{"$f":"'TA1'!$C$118","v":" "},null,"ENV-UA"]
[{"$f":"A2","v":"2012 Seattle Energy Code Compliance Forms for Commercial Buildings including R2 & R3 over 3 stories and all R1 "},null,null,null,null,null,null,null,null,{"$f":"'ENV-SUM'!E75","v":0},null,{"$f":"L2","v":"Revised Apr 2015"}]
[{"$f":"'ENV-SUM'!B3","v":"Project Address"},null,null,null,null,{"$f":"F3","v":"1 - Fill this line out on ENV-SUM"},null,null,null,"Date",{"$f":"K3","v":"01/01/2014"}]
["Fenestration Area as % gross above-grade wall area",null,null,null,null,null,{"$f":"G6","v":""},"Max. Target:",{"$f":"I6","v":""},"For Building Department Use"]
["Skylight Area as % gross roof area",null,null,null,null,null,{"$f":"G7","v":""},"Max. Target:",{"$f":"I7","v":0}]
[]
["Building Component ",null,null,null,null,null,null,"Proposed UA",null,"Target UA"]
[null,"Provide source of U-factor, page/plan # of assembly detail & ID",null,null,null,null,"F-factor","x Perimeter","= UA(U x A)","F-factor","x Perimeter =","UA (U x A)"]
[null,null,"R=",null,"ID:",null,null,null,{"$f":"IF(AND(G58=0,H58=0),0,IF(OR(G58=0,H58=0),NA(), H58*G58))","v":0},{"$f":"'TA1'!U121","v":"set occ."},{"$f":"SUM(H58:H60)","v":0},{"$f":"IF(TYPE(J58*K58)<>1,0,J58*K58)","v":0}]
[null,null,"R=",null,"ID:",null,null,null,0,"Slab-On-Grade",null,{"$f":"'TA1'!U153","v":"set occ."}]
[null,null,"R=",null,"ID:",null,null,null,0]
[null,null,"R=",null,"ID:",null,null,null,0,{"$f":"'TA1'!U122","v":"set occ."},{"$f":"SUM(H61:H63)","v":0},{"$f":"IF(TYPE(J61*K61)<>1,0,J61*K61)","v":0}]
[null,null,"R=",null,"ID:",null,null,null,0,"Heated Slab-On-Grade",null,{"$f":"'TA1'!U154","v":"set occ."}]
[null,null,"R=",null,"ID:",null,null,null,0]
[null,null,null,null,null,null,"U-factor","x Area (A)","= UA(U x A)","U-factor","x Area (A) =","UA (U x A)"]
[null,null,"U=",null,"ID:",null,null,null,{"$f":"IF(AND(G65=0,H65=0),0,IF(OR(G65=0,H65=0),NA(), H65*G65))","v":0},{"$f":"'TA1'!U106","v":"set occ."},{"$f":"SUM(H65:H68)","v":0},{"$f":"IF(TYPE(J65*K65)<>1,0,J65*K65)","v":0}]
[null,null,"U=",null,"ID:",null,null,null,0,"Opaque Swing Doors",null,{"$f":"'TA1'!U138","v":"set occ."}]
[null,null,"U=",null,"ID:",null,null,null,0]
[null,null,"U=",null,"ID:",null,null,null,0,null,null,null,0]
[null,null,"U=",null,"ID:",null,null,null,0,{"$f":"'TA1'!U107","v":"set occ."},{"$f":"SUM(H69:H71)","v":0},{"$f":"IF(TYPE(J69*K69)<>1,0,J69*K69)","v":0}]
[null,null,"U=",null,"ID:",null,null,null,0,"Opaque rollup & sliding",null,{"$f":"'TA1'!U139","v":"set occ."}]
[null,null,"U=",null,"ID:",null,null,null,0]
[null,null,"U=",null,"ID:",null,null,null,0,{"$f":"'TA1'!U101","v":"set occ."},{"$f":"'TA1'!J44","v":0},{"$f":"IF(TYPE(J72*K72)<>1,0,J72*K72)","v":0}]
[null,null,"U=",null,"ID:",null,null,null,0,"Non-Metal Frame",null,{"$f":"'TA1'!U133","v":"set occ."}]
[null,null,"U=",null,"ID:",null,null,null,0]
[null,null,"U=",null,"ID:",null,null,null,0]
[null,null,"U=",null,"ID:",null,null,null,0,{"$f":"'TA1'!U102","v":"set occ."},{"$f":"'TA1'!J45","v":0},{"$f":"IF(TYPE(J76*K76)<>1,0,J76*K76)","v":0}]
[null,null,"U=",null,"ID:",null,null,null,0,"Metal Frame, Fixed",null,{"$f":"'TA1'!U134","v":"set occ."}]
[null,null,"U=",null,"ID:",null,null,null,0]
[null,null,"U=",null,"ID:",null,null,null,0]
[null,null,"U=",null,"ID:",null,null,null,0,{"$f":"'TA1'!U103","v":"set occ."},{"$f":"'TA1'!J46","v":0},{"$f":"IF(TYPE(J80*K80)<>1,0,J80*K80)","v":0}]
[null,null,"U=",null,"ID:",null,null,null,0,"Metal Frame, Operable",null,{"$f":"'TA1'!U135","v":"set occ."}]
[null,null,"U=",null,"ID:",null,null,null,0]
[null,null,"U=",null,"ID:",null,null,null,0]
[null,null,"U=",null,"ID:",null,null,null,0,{"$f":"'TA1'!U104","v":"set occ."},{"$f":"'TA1'!J47","v":0},{"$f":"IF(TYPE(J84*K84)<>1,0,J84*K84)","v":0}]
[null,null,"U=",null,"ID:",null,null,null,0,"Metal Entrance Door",null,{"$f":"'TA1'!U136","v":"set occ."}]
[null,null,"U=",null,"ID:",null,null,null,0]
[null,null,"U=",null,"ID:",null,null,null,0]
[null,null,"U=",null,"ID:",null,null,null,0,{"$f":"'TA1'!U105","v":"set occ."},{"$f":"'TA1'!J95","v":0},{"$f":"IF(TYPE(J88*K88)<>1,0,J88*K88)","v":0}]
[null,null,"U=",null,"ID:",null,null,null,0,"All types",null,{"$f":"'TA1'!U137","v":"set occ."}]
[null,null,"U=",null,"ID:",null,null,null,0]
[null,null,"U=",null,"ID:",null,null,null,0]
[]
[null,null,null,null,null,null,null,"Area","UA",null,"Area","UA"]
[null,null,null,null,null,null,"Page 2 Subtotal ",{"$f":"SUM(H58:H91)","v":0},{"$f":"SUM(I58:I91)","v":0},null,{"$f":"K88+K84+K80+K76+K72+K69+K65+K61+K58","v":0},{"$f":"L88+L84+L80+L76+L72+L69+L65+L61+L58","v":0}]
[null,null,null,null,null,null,"Page 1 Subtotal ",{"$f":"H47","v":0},{"$f":"I47","v":0},null,{"$f":"K47","v":0},{"$f":"L47","v":0}]
[null,null,null,null,null,null,"Total ",{"$f":"H95+H94","v":0},{"$f":"I95+I94","v":0},null,{"$f":"K95+K94","v":0},{"$f":"L95+L94","v":0}]
[]
["Component Performance Compliance (UA)",null,null,null,null,null,null,null,null,null,null,{"$f":"IF(OccGroup=3,\"Occupancy Group not selected\",IF(OR(L96=0,I96=0),\"\",IF(I96<L96+0.00001,\"UA COMPLIES\",IF(Alteration110=2,\"UA DOES NOT COMPLY\",IF(I96>L96*1.10001,\"UA DOES NOT COMPLY\",\"UA COMPLIES W/ EXISTING SPACE EXEMPTION\")))))","v":"Occupancy Group not selected"}]

{"sheet":"Target Area Adjustments","index":5,"n_rows":49,"n_cols":1,"rows_kept":49,"cut":false,"hidden":false,"merged":[]}
["Vertical Fenestration Target Area Adjustment Calculations  "]
[]
[]
[]
[]
[]
[]
[]
[]
[]
[]
[]
[]
[]
[]
[]
[]
[]
[]
[]
[]
[]
[]
[]
[]
[]
[]
[]
[]
[]
[]
[]
[]
[]
[]
[]
[]
[]
[]
[]
[]
[]
[]
[]
[]
[]
[]
[]
["Skylight Target Area Adjustment Calculations "]

{"sheet":"TA1","index":6,"n_rows":158,"n_cols":55,"rows_kept":158,"cut":false,"hidden":true,"merged":[[81,9,82,9],[24,7,25,7],[33,1,35,1]]}
[]
[]
[null,"Vertical Fenestration Target Area Calculations"]
[]
[]
[]
[null,null,"VF   = Vertical fenestration (exclude SLG)",null,null,null,"AG Wall = Above-grade wall (exclude SLW)"]
[null,null,"SG   = Exempt Single Glazing",null,null,null,"Gross Exterior Above-Grade Wall Area= VF + NW + DR"]
[null,null,"NW  = Net above grade wall (excluding VF, SG & DR)",null,null,null,"DR = Opaque doors"]
[null,null,"SLW = Street level gross wall below ceiling ",null,null,null,"SLG = Area of window in Street level qualified wall "]
[null,null,null,"  height and 20' per C402.3.1",null,null,"SLT = Window area transferred to Street Level Retail wall from other areas"]
[]
[null,"Proposed Areas"]
[]
[null,null,null,"Vertical Fenestration (non-exempt) ->","VF=",{"$f":"IF(ComponentPath=1,EnvSumTotWin-EnvSumExmptSngl,SUM('ENV-UA'!H72:H87))","v":0}]
[null,null,null,"Vertical Fenestration (exempt) ->","SG=",{"$f":"EnvSumExmptSngl","v":0}]
[null,null,null,"Opaque ->","NW=",{"$f":"IF(ComponentPath=1,EnvSumGrossWall-EnvSumTotWin,SUM('ENV-UA'!H21:H32))","v":0},"DR=",{"$f":"IF(ComponentPath=1,0,SUM('ENV-UA'!H65:H71))","v":0}]
[null,null,null,"Street Level Retail ->","SLT=",{"$f":"SLRtransfer","v":"n/a"}]
[]
[null,"Maximum Target Vertical Fenestration Calculation"]
[]
[null,"Gross Exterior AG",null,"Max Vert. Fen. %\n(C402.3.1)",null,null,null,"Base Target Vert. Fen. Area"]
[null,{"$f":"SUM(F15:H17)","v":0},"x",{"$f":"U127","v":0},"¸",100,"=",{"$f":"B23*D23","v":0}]
[]
[null,null,null,null,null,null,null,"Gross Exterior AG Wall"]
[null,"Base Target Vert. Fen. Area",null,"Window area transferred to Street Level Retail (SLT)",null,"Maximum Target Vert. Fen. Area",null,null,null,"Maximum Target Vert. Fen %"]
[null,{"$f":"H23","v":0},"-",{"$f":"IF(SLR=2,0,F18)","v":0},"=",{"$f":"B27-D27","v":0},"¸",{"$f":"SUM(F15:H17)","v":0},"=",{"$f":"IF(H27=0,\"\",MIN(1,F27/H27))","v":""}]
[]
[null,"Vertical Fenestration Component Performance Target Area Adjustment Calculation"]
[]
[null,"Total Vertical Fenestration",null,null,null,"Delta Vertical Fenestration ",null,"0",null,"Excess Vertical Fenestration"]
[null,{"$f":"SUM(F15:F16)","v":0},"-",{"$f":"F27","v":0},"=",{"$f":"B32-D32","v":0},null,"ô greater","=",{"$f":"MAX(0,H33)","v":0}]
[null,null,null,null,null,null,null,{"$f":"F32","v":0}]
[null,"Non-exempt Vertical Fenestration"]
[]
[null,null,null,"Excess Vertical Fenestration",null,"Target Vertical Fenestration",null,null,null,"Target VF Multiplier",null,null,null,null,null,null,null,"This whole look up is current only used by seattle but the functionality is preserved incase some future code varies the u-value by glass area."]
[null,{"$f":"IF(ComponentPath<>1,B32-F16,0)","v":0},"-",{"$f":"J32","v":0},"=",{"$f":"B37-D37","v":0},"¸",{"$f":"B37","v":0},"=",{"$f":"IF(H37>0,F37/H37,0)","v":0}]
[]
[null,"Net AG Wall Area",null,"Excess Fenestration",null,"Target Net Wall Area",null,"Net Wall",null,"Target Net Wall Mult."]
[null,{"$f":"IF(ComponentPath<>1,F17,0)","v":0},"+",{"$f":"D37","v":0},"=",{"$f":"B40+D40","v":0},"¸",{"$f":"B40","v":0},"=",{"$f":"IF(H40>0,F40/H40,0)","v":0}]
[]
[null,"ENV-UA Vertical Fenestration Target Area Adjustments",null,null,null,null,null,null,null,null,null,null,null,null,null,null,null,null,null,null,null,null,null,null,null,null,null,null,null,null,null,null,null,null,null,null,null,null,null,null,null,null,null,null,null,null,null,null,null,null,"ERROR MESSAGES"]
[null,null,null,"Vertical Fenestration",null,"Proposed Area",null,"Target VF Mult.",null,"Target Area",null,null,null,null,null,null,null,null,null,null,null,null,null,null,null,null,null,null,null,null,null,null,null,null,null,null,null,null,null,null,null,null,null,null,null,null,null,null,null,null,"page","cell","label","message"]
[null,null,null,"Non-metal frame",null,{"$f":"SUM('ENV-UA'!H72:H75)","v":0},"x",{"$f":"IF(F44>0,$J$37,0)","v":0},"=",{"$f":"F44*H44","v":0},null,null,null,null,null,null,null,null,null,null,null,null,null,null,null,null,null,null,null,null,null,null,null,null,null,null,null,null,null,null,null,null,null,null,null,null,null,null,null,null,"ENV-SUM","D21","msgpre31noopts","Project exceeds maximum vertical fenestration area for Prescriptive compliance. Comply via 50% DLZ Option (C402.3.1.1) or High Performance Window Option (C402.3.1.3) or Component Performance with Target Area Adjustment. "]
[null,null,null,"Metal frame, fixed",null,{"$f":"SUM('ENV-UA'!H76:H79)","v":0},"x",{"$f":"IF(F45>0,$J$37,0)","v":0},"=",{"$f":"F45*H45","v":0},null,null,null,null,null,null,null,null,null,null,null,null,null,null,null,null,null,null,null,null,null,null,null,null,null,null,null,null,null,null,null,null,null,null,null,null,null,null,null,null,"ENV-SUM","D21","msgpre41opts","Project exceeds maximum vertical fenestration area for Prescriptive compliance. Comply via Component Performance with Target Area Adjustment. "]
[null,null,null,"Metal frame, operable",null,{"$f":"SUM('ENV-UA'!H80:H83)","v":0},"x",{"$f":"IF(F46>0,$J$37,0)","v":0},"=",{"$f":"F46*H46","v":0},null,null,null,null,null,null,null,null,null,null,null,null,null,null,null,null,null,null,null,null,null,null,null,null,null,null,null,null,null,null,null,null,null,null,null,null,null,null,null,null,"ENV-SUM","D21"]
[null,null,null,"Metal frame, entrance door",null,{"$f":"SUM('ENV-UA'!H84:H87)","v":0},"x",{"$f":"IF(F47>0,$J$37,0)","v":0},"=",{"$f":"F47*H47","v":0},null,null,null,null,null,null,null,null,null,null,null,null,null,null,null,null,null,null,null,null,null,null,null,null,null,null,null,null,null,null,null,null,null,null,null,null,null,null,null,null,"ENV-SUM","D21"]
[null,null,null,"Above-grade Wall",null,"Proposed Area",null,"Target Net Wall Mult.",null,"Target Area",null,null,null,null,null,null,null,null,null,null,null,null,null,null,null,null,null,null,null,null,null,null,null,null,null,null,null,null,null,null,null,null,null,null,null,null,null,null,null,null,"ENV-SUM","D21"]
[null,null,null,"Steel Frame",null,{"$f":"SUM('ENV-UA'!H21:H23)","v":0},"x",{"$f":"IF(F49>0,$J$40,0)","v":0},"=",{"$f":"F49*H49","v":0},null,null,null,null,null,null,null,null,null,null,null,null,null,null,null,null,null,null,null,null,null,null,null,null,null,null,null,null,null,null,null,null,null,null,null,null,null,null,null,null,"ENV-SUM","D21"]
[null,null,null,"Metal Building",null,{"$f":"SUM('ENV-UA'!H24:H26)","v":0},null,{"$f":"IF(F50>0,$J$40,0)","v":0},"=",{"$f":"F50*H50","v":0},null,null,null,null,null,null,null,null,null,null,null,null,null,null,null,null,null,null,null,null,null,null,null,null,null,null,null,null,null,null,null,null,null,null,null,null,null,null,null,null,"ENV-SUM","D21"]
[null,null,null,"Wood / Other frame",null,{"$f":"SUM('ENV-UA'!H27:H29)","v":0},"x",{"$f":"IF(F51>0,$J$40,0)","v":0},"=",{"$f":"F51*H51","v":0},null,null,null,null,null,null,null,"This whole look up was set up to look up percent glass.  With WSEC 2012 it was co-opted to look up glazing based upon selection of the high performance path glazing.  % win could be still be used by assign glazing case differently",null,null,null,null,null,null,null,null,null,null,null,null,null,null,null,null,null,null,null,null,null,null,null,null,null,null,null,null,null,null,null,null,"ENV-SUM","D21"]
[null,null,null,"Mass",null,{"$f":"SUM('ENV-UA'!H30:H32)","v":0},"x",{"$f":"IF(F52>0,$J$40,0)","v":0},"=",{"$f":"F52*H52","v":0},null,null,null,null,null,null,null,null,null,null,null,null,null,null,null,null,null,null,null,null,null,null,null,null,null,null,null,null,null,null,null,null,null,null,null,null,null,null,null,null,"ENV-SUM","D21","msgcomply","COMPLIES"]
[null,null,null,null,null,null,null,null,null,null,null,null,null,null,null,null,null,null,null,null,null,null,"Glazing Case (WSEC 2012 1= HPF Win, 2=base)",null,null,null,null,null,null,null,null,null,null,null,null,null,null,null,null,null,null,null,null,null,null,null,null,null,null,null,"ENV-SUM","D21","msgua31noopts","Project exceeds maximum target vertical fenestration area. Target area adjustment applied to UA calculation.  May comply via 50% DLZ Option (C402.3.1.1) or High Performance Window Option (C402.3.1.3)."]
[null,null,null,"Sum of Proposed","Sum of Proposed          ",{"$f":"SUM(F44:F52)","v":0},null,"Sum of Target",null,{"$f":"SUM(J44:J52)","v":0},null,null,null,null,null,null,null,null,null,null,null,null,{"$f":"IF(VertFenAlt=2,1,2)","v":2},null,null,null,null,null,null,null,null,null,null,null,null,null,null,null,null,null,null,null,null,null,null,null,null,null,null,null,"ENV-SUM","D21","msgua41dlz","Project exceeds maximum target vertical fenestration area. Target area adjustment applied to UA calculation."]
[null,null,null,null,null,null,null,null,null,null,null,null,null,null,null,null,null,null,null,null,null,null,null,null,null,null,null,null,null,null,null,null,null,null,null,null,null,null,null,null,null,null,null,null,null,null,null,null,null,null,"ENV-SUM","D21","msgua41hpf","Project exceeds maximum target vertical fenestration area. Target area adjustment applied to UA calculation."]
[null,"ENV-SHGC Vertical Fenestration Target Area Adjustments"]
[null,null,null,"Non-North Vertical Fenestration",null,"Proposed Area",null,"Target VF Mult.",null,"Target Area"]
[null,null,null,"PF < 0.2",null,{"$f":"SUMIFS('ENV-SHGC'!$E$22:$E$31,'ENV-SHGC'!$C$22:$C$31,\">=0\",'ENV-SHGC'!$C$22:$C$31,\"<0.2\")+ SUMIFS('ENV-SHGC'!$E$22:$E$31,'ENV-SHGC'!$C$22:$C$31,\"\",'ENV-SHGC'!$C$22:$C$31,\"\")","v":0},"x",{"$f":"IF(F58>0,$J$37,0)","v":0},"=",{"$f":"F58*H58","v":0},null,null,null,null,null,null,null,null,null,null,"BLOCK FOR RAW U-VALUE DATA for Codes that vary values by glazing area.  Referenced by lookup functions in U-value By Jurisdiction Table",null,null,null,null,null,null,null,null,null,null,null,null,null,null,null,"BLOCK FOR RAW SHGC DATA for Codes that vary values by glazing area.  Referenced by lookup functions in U-value By Jurisdiction Table"]
[null,null,null,"0.2 ≤ PF < 0.5",null,{"$f":"SUMIFS('ENV-SHGC'!$E$22:$E$31,'ENV-SHGC'!$C$22:$C$31,\">=0.2\",'ENV-SHGC'!$C$22:$C$31,\"<0.5\")","v":0},"x",{"$f":"IF(F59>0,$J$37,0)","v":0},"=",{"$f":"F59*H59","v":0},null,null,null,null,null,null,null,null,null,null,null,null,null,"Nres","Nres","Nres","Res","Res","Res","Refg","Refg","Refg",null,null,null,null,null,null,null,null,null,"Nres",null,null,"Res",null,null,"Refg"]
[null,null,null,"PF ≥ 0.5",null,{"$f":"SUMIFS('ENV-SHGC'!$E$22:$E$31,'ENV-SHGC'!$C$22:$C$31,\">=0.5\",'ENV-SHGC'!$C$22:$C$31,\"<99\")","v":0},"x",{"$f":"IF(F60>0,$J$37,0)","v":0},"=",{"$f":"F60*H60","v":0},null,null,null,null,null,null,null,null,null,null,null,null,"Glazing Case",1,2,"Seattle",1,2,"Seattle",1,2,"Seattle",null,null,null,null,"SHGC",null,null,null,null,"Seattle",null,null,"Seattle",null,null,"Seattle"]
[null,null,null,"North Vertical Fenestration"]
[null,null,null,"PF < 0.2",null,{"$f":"SUMIFS('ENV-SHGC'!$E$38:$E$44,'ENV-SHGC'!$C$38:$C$44,\">=0\",'ENV-SHGC'!$C$38:$C$44,\"<0.2\")+ SUMIFS('ENV-SHGC'!$E$38:$E$44,'ENV-SHGC'!$C$38:$C$44,\"\",'ENV-SHGC'!$C$38:$C$44,\"\")","v":0},"x",{"$f":"IF(F62>0,$J$37,0)","v":0},"=",{"$f":"F62*H62","v":0}]
[null,null,null,"0.2 ≤ PF < 0.5",null,{"$f":"SUMIFS('ENV-SHGC'!$E$38:$E$44,'ENV-SHGC'!$C$38:$C$44,\">=0.2\",'ENV-SHGC'!$C$38:$C$44,\"<0.5\")","v":0},"x",{"$f":"IF(F63>0,$J$37,0)","v":0},"=",{"$f":"F63*H63","v":0}]
[null,null,null,"PF ≥ 0.5",null,{"$f":"SUMIFS('ENV-SHGC'!$E$38:$E$44,'ENV-SHGC'!$C$38:$C$44,\">=0.5\",'ENV-SHGC'!$C$38:$C$44,\"<99\")","v":0},"x",{"$f":"IF(F64>0,$J$37,0)","v":0},"=",{"$f":"F64*H64","v":0},null,null,null,null,null,null,null,null,null,null,"Window","non-metal frame",1,0.28000000000000003,0.28000000000000003,0.28000000000000003,0.28000000000000003,0.28000000000000003,0.28000000000000003,0.28000000000000003,0.28000000000000003,0.28000000000000003,null,null,null,null,"Window",null,1,0.35,0.35,0.35,0.35,0.35,0.35,0.35,0.35,0.35]
[null,null,null,null,null,null,null,null,null,null,null,null,null,null,null,null,null,null,null,null,"Window","non-metal frame",2,0.3,0.3,0.3,0.3,0.3,0.3,0.3,0.3,0.3,null,null,null,null,"Window",null,2,0.4,0.4,0.35,0.4,0.4,0.35,0.4,0.4,0.35]
[null,"Skylight Target Area Adjustment Calculations ",null,null,null,null,null,null,null,null,null,null,null,null,null,null,null,null,null,null,"Window","non-metal frame",3,null,null,null,null,null,null,null,null,null,null,null,null,null,"Window",null,3]
[null,null,null,null,null,null,null,null,null,null,null,null,null,null,null,null,null,null,null,null,"Window","Metal Frame, fixed",1,0.34,0.34,0.34,0.34,0.34,0.34,0.34,0.34,0.34,null,null,null,null,"Window","0.2<=pf<0.5",1,{"$f":"AN64*1.2","v":0.42},{"$f":"AO64*1.2","v":0.42},{"$f":"AP64*1.2","v":0.42},{"$f":"AQ64*1.2","v":0.42},0.42,0.42,0.42,0.42,0.42]
[null,null,null,null,null,null,null,null,null,null,null,null,null,null,null,null,null,null,null,null,"Window","Metal Frame, fixed",2,0.38,0.38,0.38,0.38,0.38,0.38,0.38,0.38,0.38,null,null,null,null,"Window","0.2<=pf<0.5",2,{"$f":"AN65*1.2","v":0.48},{"$f":"AO65*1.2","v":0.48},{"$f":"AP65*1.2","v":0.42},0.48,0.48,0.42,0.48,0.48,0.42]
[null,null,"SKY= Skylight",null,"NR - Net roof (excludes skylight)",null,null,null,"Gross Exterior Roof Area = SKY + NR",null,null,null,null,null,null,null,null,null,null,null,"Window","Metal Frame, fixed",3,null,null,null,null,null,null,null,null,null,null,null,null,null,"Window","0.2<=pf<0.5",3]
[null,null,null,null,null,null,null,null,null,null,null,null,null,null,null,null,null,null,null,null,"Window","Metal Frame, operable",1,0.36,0.36,0.36,0.36,0.36,0.36,0.36,0.36,0.36,null,null,null,null,"Window","pf>=0.5",1,{"$f":"AN64*1.6","v":0.55999999999999994},{"$f":"AO64*1.6","v":0.55999999999999994},{"$f":"AP64*1.6","v":0.55999999999999994},{"$f":"AQ64*1.6","v":0.55999999999999994},0.55999999999999994,0.55999999999999994,0.55999999999999994,0.55999999999999994,0.55999999999999994]
[null,null,null,null,null,null,null,null,null,null,null,null,null,null,null,null,null,null,null,null,"Window","Metal Frame, operable",2,0.4,0.4,0.4,0.4,0.4,0.4,0.4,0.4,0.4,null,null,null,null,"Window","pf>=0.5",2,{"$f":"AN65*1.6","v":0.64000000000000012},{"$f":"AO65*1.6","v":0.64000000000000012},{"$f":"AP65*1.6","v":0.55999999999999994},0.64000000000000012,0.64000000000000012,0.55999999999999994,0.64000000000000012,0.64000000000000012,0.55999999999999994]
[null,"Proposed Areas",null,null,null,null,null,null,null,null,null,null,null,null,null,null,null,null,null,null,"Window","Metal Frame, operable",3,null,null,null,null,null,null,null,null,null,null,null,null,null,"Window","pf>=0.5",3]
[null,null,null,"Skylight (Horizontal Fenestration) ->","SKY=",{"$f":"SUM('ENV-UA'!H88:H91)","v":0},null,null,null,null,null,null,null,null,null,null,null,null,null,null,"Window","metal entrance door",1,0.6,0.6,0.6,0.6,0.6,0.6,0.6,0.6,0.6,null,null,null,null,"Skylight",null,1,0.35,0.35,0.32,0.35,0.35,0.32,0.35,0.35,0.32]
[null,null,null,"Opaque Roof  ->","NR=",{"$f":"SUM('ENV-UA'!H12:H20)","v":0},null,null,null,null,null,null,null,null,null,null,null,null,null,null,"Window","metal entrance door",2,0.6,0.6,0.6,0.6,0.6,0.6,0.6,0.6,0.6,null,null,null,null,"Skylight",null,2,0.35,0.35,0.32,0.35,0.35,0.32,0.35,0.35,0.32]
[null,null,null,null,null,null,null,null,null,null,null,null,null,null,null,null,null,null,null,null,"Window","metal entrance door",3,null,null,null,null,null,null,null,null,null,null,null,null,null,"Skylight",null,3]
[]
[null,"Skylight Target Area Adjustment Calculation"]
[]
[null,"Gross Exterior Roof Area",null,"Max Skylight %\n(C402.3.1)",null,null,null,"Maximum Skylight Fenestration Area",null,null,null,null,null,null,null,null,null,null,null,null,"Skylight","all",1,0.5,0.5,0.45,0.5,0.5,0.45,0.5,0.5,0.45,null,null,null,null,"N. Window",null,1,0.35,0.35,0.35,0.35,0.35,0.35,0.35,0.35,0.35]
[null,{"$f":"SUM(F73:F74)","v":0},"x",{"$f":"U128","v":0},"¸",100,"=",{"$f":"B80*D80","v":0},null,null,null,null,null,null,null,null,null,null,null,null,"Skylight","all",2,0.5,0.5,0.45,0.5,0.5,0.45,0.5,0.5,0.45,null,null,null,null,"N. Window",null,2,0.4,0.4,0.35,0.4,0.4,0.35,0.4,0.4,0.35]
[null,null,null,null,null,null,null,null,null,null,null,null,null,null,null,null,null,null,null,null,"Skylight","all",3,null,null,null,null,null,null,null,null,null,null,null,null,null,"N. Window",null,3]
[null,null,null,null,null,null,null,null,null,"Excess Skylight",null,null,null,null,null,null,null,null,null,null,null,null,null,null,null,null,null,null,null,null,null,null,null,null,null,null,"N. Window","0.2<=pf<0.5",1,{"$f":"AN79*1.1","v":0.38500000000000001},{"$f":"AO79*1.1","v":0.38500000000000001},0.38500000000000001,0.38500000000000001,0.38500000000000001,0.38500000000000001,0.38500000000000001,0.38500000000000001,0.38500000000000001]
[null,"Total Skylight Area",null,"Maximum Target",null,"Delta Skylight Area",null,"0",null,null,null,null,null,null,null,null,null,null,null,null,null,null,null,null,null,null,null,null,null,null,null,null,null,null,null,null,"N. Window","0.2<=pf<0.5",2,{"$f":"AN80*1.1","v":0.44000000000000006},0.44000000000000006,0.38500000000000001,0.44000000000000006,0.44000000000000006,0.38500000000000001,0.44000000000000006,0.44000000000000006,0.38500000000000001]
[null,{"$f":"F73","v":0},"-",{"$f":"H80","v":0},"=",{"$f":"B84-D84","v":0},null,"ô greater","=",{"$f":"MAX(0,H85)","v":0},null,null,null,null,null,null,null,null,null,null,null,null,null,null,null,null,null,null,null,null,null,null,null,null,null,null,"N. Window","0.2<=pf<0.5",3]
[null,null,null,null,null,null,null,{"$f":"F84","v":0},null,null,null,null,null,null,null,null,null,null,null,null,null,null,null,null,null,null,null,null,null,null,null,null,null,null,null,null,"N. Window","pf>=0.5",1,{"$f":"AN79*1.2","v":0.42},{"$f":"AO79*1.2","v":0.42},0.42,0.42,0.42,0.42,0.42,0.42,0.42]
[null,null,null,null,null,null,null,null,null,null,null,null,null,null,null,null,null,null,null,null,null,null,null,null,null,null,null,null,null,null,null,null,null,null,null,null,"N. Window","pf>=0.5",2,{"$f":"AN80*1.2","v":0.48},0.48,0.42,0.48,0.48,0.42,0.48,0.48,0.42]
[null,"Total Skylight Area",null,"Excess Skylight",null,"Target Skylight Area",null,"Total Skylight Area",null,"Target SKY Multiplier",null,null,null,null,null,null,null,null,null,null,null,null,null,null,null,null,null,null,null,null,null,null,null,null,null,null,"N. Window","pf>=0.5",3]
[null,{"$f":"B84","v":0},"-",{"$f":"J84","v":0},"=",{"$f":"B88-D88","v":0},"¸",{"$f":"B88","v":0},"=",{"$f":"IF(H88>0,F88/H88,0)","v":0}]
[]
[null,"Net Roof Area",null,"Excess Skylight",null,"Target Net Roof Area",null,"Net Roof",null,"Target Net Roof Mult.",null,null,null,null,null,null,null,null,null,"Selected Group (1=Nres, 2=Res, 3= Refg WA) ==>",{"$f":"IF(B107<=2,B107,IF(B107=3,4,3))","v":4},null,null,null,"seattle also has swing and non-swing doors",null,null,null,null,null,null,null,null,null,"door type u-values","same","diff -swing / non-swing"]
[null,{"$f":"F74","v":0},"+",{"$f":"D88","v":0},"=",{"$f":"B91+D91","v":0},"¸",{"$f":"B91","v":0},"=",{"$f":"IF(H91>0,F91/H91,0)","v":0},null,null,null,null,null,null,null,null,null,"Selected Zone (1=Zone 4c/5, 2=Zone 6, 3= Seattle) ==>",{"$f":"IF(B109<=2,B109,IF(B109=3,4,3))","v":3},null,null,null,"and two floor u-values (mass/steel joist vs wood/other)",null,null,null,null,null,null,null,null,null,"mtl  bld & steel frame wall u-values","same","diff"]
[null,null,null,null,null,null,null,null,null,null,null,null,null,null,null,null,null,null,null,"Data Entered (0=no, 1=yes) ==>",{"$f":"IF('ENV-UA'!H96=0,0,1)","v":0},null,null,null,"Glass U & SHGC is by 0-30 and >30 to 40%",null,null,null,null,null,null,null,null,null,"floor over air u-values","same","state + wd frame"]
[null,"ENV-UA and ENV-SHGC Target Area Adjustments",null,null,null,null,null,null,null,null,null,null,null,null,null,null,null,null,null,"Offset ==>",0]
[null,null,null,"Skylight",null,"Proposed Area",null,"Target SKY Mult.",null,"Target Area",null,null,null,null,null,null,null,null,null,"Column # (idxU) ==>",{"$f":"IF(U90=4,10,IF(U91=4,11,U93+(idxGroup-1)*3+idxZone))","v":10},"should return blank if nothing entered, warning if something entered but no zone/jurisdiction chosen, or the proper value"]
[null,null,null,"All",null,{"$f":"SUM('ENV-UA'!H88:H91)","v":0},"x",{"$f":"IF(F95>0,$J$88,0)","v":0},"=",{"$f":"F95*H95","v":0}]
[null,null,null,"Roof",null,"Proposed Area",null,"Target Net Roof Mult.",null,"Target Area",null,null,null,null,null,null,null,null,null,null,null,null,"Master Look Up Table of U-Values",null,null,null,null,null,null,null,null,null,null,null,null,null,null,null,"Master Look Up Table of U-Values"]
[null,null,null,"Insulation Above Deck",null,{"$f":"SUM('ENV-UA'!H12:H14)","v":0},"x",{"$f":"IF(F97>0,$J$91,0)","v":0},"=",{"$f":"F97*H97","v":0},null,null,null,null,null,null,null,null,null,null,null,null,"Col Num ==>",1,2,3,4,5,6,7,8,9,10,11,null,null,null,null,"Col Num ==>",1,2,3,4,5,6,7,8,9,10,11]
[null,null,null,"Metal Building",null,{"$f":"SUM('ENV-UA'!H15:H17)","v":0},"x",{"$f":"IF(F98>0,$J$91,0)","v":0},null,{"$f":"F98*H98","v":0},null,null,null,null,null,null,null,null,null,null,null,null,"Group ==>","Nres","Nres","Nres","Res","Res","Res","Refg","Refg","Refg",null,null,null,null,null,null,"Group ==>","Nres","Nres","Nres","Res","Res","Res","Refg","Refg","Refg"]
[null,null,null,"Attic / All Others",null,{"$f":"SUM('ENV-UA'!H18:H20)","v":0},"x",{"$f":"IF(F99>0,$J$91,0)","v":0},"=",{"$f":"F99*H99","v":0},null,null,null,null,null,null,"Component","Item Name",null,null,null,null,"Zone ==>",1,2,"Seattle",1,2,"Seattle",1,2,"Seattle",null,null,null,null,null,null,"Zone ==>",1,2,"Seattle",1,2,"Seattle",1,2,"Seattle",null,null,null,null,"SHGC Multipliers"]
[null,null,null,null,null,null,null,null,null,null,null,null,null,null,null,null,null,"Long","Short",null,"Target U",null,null,null,null,null,null,null,null,null,null,null,null,null,null,null,null,"Target U",null,null,null,null,null,null,null,null,null,null,null,null,null,null,"PF","non-North","North"]
[null,null,null,null,"Sum of Proposed  ",{"$f":"SUM(F94:F99)","v":0},null,null,"Sum of Target  ",{"$f":"SUM(J94:J99)","v":0},null,null,null,null,null,null,"Window","non-metal frame","non-metal frm",1,{"$f":"INDEX(TargetUbyJurisdiction,T101,$U$94)","v":"set occ."},null,null,{"$f":"INDEX(X$64:X$66,$W$54)","v":0.3},{"$f":"VLOOKUP($W$54,$W$64:$AF$66,3,FALSE)","v":0.3},{"$f":"VLOOKUP($W$54,$W$64:$AF$66,4,FALSE)","v":0.3},{"$f":"VLOOKUP($W$54,$W$64:$AF$66,5,FALSE)","v":0.3},{"$f":"VLOOKUP($W$54,$W$64:$AF$66,6,FALSE)","v":0.3},{"$f":"VLOOKUP($W$54,$W$64:$AF$66,7,FALSE)","v":0.3},{"$f":"VLOOKUP($W$54,$W$64:$AF$66,8,FALSE)","v":0.3},{"$f":"VLOOKUP($W$54,$W$64:$AF$66,9,FALSE)","v":0.3},{"$f":"VLOOKUP($W$54,$W$64:$AF$66,10,FALSE)","v":0.3},"set occ.","set zone",null,"Window",1,{"$f":"INDEX(TargetSHGCbyJurisdiction,AK101,$U$94)","v":"set occ."},null,{"$f":"INDEX(AN64:AN66,$W$54)","v":0.4},0.4,0.35,0.4,0.4,0.35,0.4,0.4,0.35,"set occ.","set zone",null,null,0,1,1]
[null,null,null,null,null,null,null,null,null,null,null,null,null,null,null,null,"Window","metal frame, fixed","metal fix",2,"set occ.",null,null,{"$f":"INDEX(X$67:X$69,$W$54)","v":0.38},{"$f":"INDEX(Y$67:Y$69,$W$54)","v":0.38},0.38,0.38,0.38,0.38,0.38,0.38,0.38,"set occ.","set zone",null,"Window 0.2<=pf<0.5",2,"set occ.",null,{"$f":"AN101*1.2","v":0.48},{"$f":"AO101*1.2","v":0.48},{"$f":"AP101*1.2","v":0.42},0.48,0.48,0.42,0.48,0.48,0.42,"set occ.","set zone",null,null,0.10000100000000001,0.91,0.95]
[null,null,null,null,null,null,null,null,null,null,null,null,null,null,null,null,"Window","metal frame, operable","metal opp",3,"set occ.",null,null,{"$f":"INDEX(X$70:X$72,$W$54)","v":0.4},{"$f":"INDEX(Y$70:Y$72,$W$54)","v":0.4},0.4,0.4,0.4,0.4,0.4,0.4,0.4,"set occ.","set zone",null,"Window pf>0.5",3,"set occ.",null,{"$f":"AN101*1.6","v":0.64000000000000012},{"$f":"AO101*1.6","v":0.64000000000000012},{"$f":"AP101*1.6","v":0.55999999999999994},0.64000000000000012,0.64000000000000012,0.55999999999999994,0.64000000000000012,0.64000000000000012,0.55999999999999994,"set occ.","set zone",null,null,0.20000100000000001,0.82,0.91]
[null,null,null,null,null,null,null,null,null,null,null,null,null,null,null,null,"Window","metal entrance door","metal frm door",4,"set occ.",null,null,0.6,0.6,0.6,0.6,0.6,0.6,0.6,0.6,0.6,"set occ.","set zone",null,"Skylight",4,"set occ.",null,0.35,0.35,0.32,0.35,0.35,0.32,0.35,0.35,0.32,"set occ.","set zone",null,null,0.30000100000000002,0.74,0.87]
[null,null,null,null,null,null,null,null,null,null,null,null,null,null,null,null,"Skylight","All Types","all types",5,"set occ.",null,null,0.5,0.5,0.45,0.5,0.5,0.45,0.5,0.5,0.45,"set occ.","set zone",null,"N Window",5,"set occ.",null,{"$f":"INDEX(AN79:AN81,$W$54)","v":0.4},{"$f":"INDEX(AO79:AO81,$W$54)","v":0.4},0.35,0.4,0.4,0.35,0.4,0.4,0.35,"set occ.","set zone",null,null,0.400001,0.67,0.84]
[null,"Flags for U-Value Group from building flags on Env-Sum",null,null,null,null,null,null,null,null,null,null,null,null,null,null,"Door","Swinging","swing",6,{"$f":"INDEX(TargetUbyJurisdiction,T106,$U$94)","v":"set occ."},null,null,0.37,0.37,0.37,0.37,0.37,0.37,0.37,0.37,{"$f":"Z106","v":0.37},"set occ.","set zone",null,"N Window 0.2<=pf<0.5",6,"set occ.",null,{"$f":"AN105*1.1","v":0.44000000000000006},{"$f":"AO105*1.1","v":0.44000000000000006},{"$f":"AP105*1.1","v":0.38500000000000001},0.44000000000000006,0.44000000000000006,0.38500000000000001,0.44000000000000006,0.44000000000000006,0.38500000000000001,"set occ.","set zone",null,null,0.50000100000000003,0.61,0.81]
[null,3,"Occupancy Group: 1=Non Res, 2= Res, 3=none selected ,   4=Refg Warehouse,",null,null,null,null,null,null,null,null,null,null,null,null,null,"Door","Roll-up or sliding","roll/slide",7,"set occ.",null,null,0.37,0.37,0.39,0.37,0.37,0.39,0.37,0.37,0.39,"set occ.","set zone",null,"N Window pf>0.5",7,"set occ.",null,{"$f":"AN105*1.2","v":0.48},{"$f":"AO105*1.2","v":0.48},{"$f":"AP105*1.2","v":0.42},0.48,0.48,0.42,0.48,0.48,0.42,"set occ.","set zone",null,null,0.60000100000000001,0.56000000000000005,0.78]
[null,4,"Compliance Path",null,null,null,null,null,null,null,null,null,null,null,null,null,"Roof","above deck U0.034 - all zones","above deck",8,"set occ.",null,null,3.4000000000000002E-2,3.2000000000000001E-2,2.5999999999999999E-2,3.1E-2,3.1E-2,2.5999999999999999E-2,null,null,null,"set occ.","set zone",null,null,null,null,null,null,null,null,null,null,null,null,null,null,null,null,null,null,0.70000099999999998,0.51,0.76]
[null,4,"Climate Zone: 1= Zone 4c/5, 2=Zone 6, 3=Cleared, 4= Seattle ",null,null,null,null,null,"for seattle need to set this to 4",null,null,null,null,null,null,null,"Roof","metal building U0.031 - all zones","metal bldg",9,"set occ.",null,null,3.1E-2,2.9000000000000001E-2,2.7E-2,3.1E-2,3.1E-2,2.7E-2,null,null,null,"set occ.","set zone",null,null,null,null,null,null,null,null,null,null,null,null,null,null,null,null,null,null,0.80000099999999996,0.47,0.75]
[null,3,"Vertical Fenestration Alternates: 1= 50% DLZ, 2= high performance window, 3=none",null,null,null,null,null,null,null,null,null,null,null,null,null,"Roof","attic/Other U0.027 - all zones","attic/other",10,"set occ.",null,null,2.1000000000000001E-2,2.1000000000000001E-2,2.1000000000000001E-2,2.1000000000000001E-2,2.1000000000000001E-2,2.1000000000000001E-2,null,null,null,"set occ.","set zone",null,null,null,null,null,null,null,null,null,null,null,null,null,null,null,null,null,null,0.90000999999999998,0.44,0.73]
[null,{"$f":"IF(VertFenAlt=1,\"50% Floor Area in DLZ\",IF(VertFenAlt=2,\"High Performance Vertical Fenestration\",\"None Selected on ENV-SUM\"))","v":"None Selected on ENV-SUM"},"Vertical Fenestration Alternates text",null,null,null,null,null,null,null,null,null,null,null,null,null,"Roof","dummy","dummy",11,"set occ.",null,null,0.999,0.999,0.999,0.999,0.999,0.999,null,null,null,"set occ.","set zone",null,"sea has 0.056 for int ins",null,null,null,null,null,null,null,null,null,null,null,null,null,null,null,null,1]
[null,{"$f":"IF(VertFenAlt=1,1,2)","v":2},">=50% of floor area in DLZ: 1=yes, 2 no : not used ",null,null,null,null,null,null,null,null,null,null,null,null,null,"AGWall","mass U0.15 z1, U0.123 z2","mass",12,"set occ.",null,null,0.104,7.8E-2,5.7000000000000002E-2,7.8E-2,7.0999999999999994E-2,5.7000000000000002E-2,null,null,null,"set occ.","set zone"]
[null,{"$f":"IF(VertFenAlt=2,1,2)","v":2},"high performance glazing path (2-no, 1- yes) : not used",null,null,null,null,null,null,null,null,null,null,null,null,null,"AGWall","metal building U0.064 - all zones","metal bldg",13,"set occ.",null,null,5.1999999999999998E-2,5.1999999999999998E-2,5.1999999999999998E-2,5.1999999999999998E-2,4.3999999999999997E-2,5.1999999999999998E-2,null,null,null,"set occ.","set zone",null,"sea mtl bld and stl are diff"]
[null,2,"Street level retail: 1=yes, 2 - no but paired submitted, 3 - no",null,null,null,null,null,null,null,null,null,null,null,null,null,"AGWall","steel frame U0.064 - all zones","steel frame",14,"set occ.",null,null,5.5E-2,4.9000000000000002E-2,5.5E-2,5.5E-2,4.3999999999999997E-2,5.5E-2,null,null,null,"set occ.","set zone"]
[null,{"$f":"IF(B112=1,0.4,0.3)","v":0.3},"Maximum prescriptive / comp WWR",null,null,null,null,null,null,null,null,null,null,null,null,null,"AGWall","wood frame/other U0.057 zi, U 0.051z2","wood frame/other",15,"set occ.",null,null,5.3999999999999999E-2,5.0999999999999997E-2,5.0999999999999997E-2,5.3999999999999999E-2,4.3999999999999997E-2,5.0999999999999997E-2,null,null,null,"set occ.","set zone"]
[null,"HEADER Row",null,null,null,null,null,null,null,null,null,null,null,null,null,null,"AGWall","cmu, same as mass but with corefill then okay in z1","CMU w/ Ins. Cores",16,"set occ.",null,null,0.25,0.123,5.7000000000000002E-2,0.09,0.08,5.7000000000000002E-2,null,null,null,"set occ.","set zone",null,"sea has 0.025 wd frm"]
[null,"Occupancy",{"$f":"IF(B107=1,\"Commercial\",IF(B107=2,\"Residential\",IF(B107=4,\"Refrigerated Warehouse\",\"\")))","v":""},null,null,null,null,null,null,null,null,null,null,null,null,null,"Floor","Mass","mass",17,"set occ.",null,null,3.1E-2,3.1E-2,2.9000000000000001E-2,3.1E-2,3.1E-2,2.9000000000000001E-2,null,null,null,"set occ.","set zone"]
[null,"Climate zone",{"$f":"IF(B107=3,\" \",IF(B109=1,\"Zones 4c/5b\",IF(B109=2,\"Zone 6b\",IF(B109=4,\"Seattle\",\"\"))))","v":" "},null,null,null,null,null,null,null,null,null,null,null,null,null,"Floor","Joist/framing","joist/frame",18,"set occ.",null,null,2.9000000000000001E-2,2.9000000000000001E-2,2.9000000000000001E-2,2.9000000000000001E-2,2.9000000000000001E-2,2.9000000000000001E-2,null,null,null,"set occ.","set zone"]
[null,"Header",{"$f":"IF(AND(C117<>\"\",C118<>\"\"),CONCATENATE(C118,\" \",C117),\"\")","v":""},null,null,null,null,null,null,null,null,null,null,null,null,null,"Floor","Wood joist/framing","Wood joist/framing",19,{"$f":"INDEX(TargetUbyJurisdiction,T119,$U$94)","v":"set occ."},null,null,null,null,2.5000000000000001E-2,null,null,2.5000000000000001E-2,null,null,null,"set occ.","set zone"]
[null,"Prescriptive PF Factor - not used in 2012",null,null,null,null,null,null,null,null,null,null,null,null,null,null,"Floor","Metal joist/framing","Metal joist/framing",20,{"$f":"INDEX(TargetUbyJurisdiction,T120,$U$94)","v":"set occ."},null,null,null,null,2.9000000000000001E-2,null,null,2.9000000000000001E-2,null,null,null,"set occ.","set zone"]
[null,3,null,null,null,null,null,null,null,null,null,null,null,null,null,null,"Floor",null,"Slab",21,"set occ.",null,"All floors U0.029 - all zones",0.54,0.54,0.52,0.54,0.52,0.52,null,null,null,"set occ.","set zone"]
[null,"North Face Credit Flag - not used in 2012",null,null,null,null,null,null,null,null,null,null,null,null,null,null,"Floor",null,"Heated Slab",22,"set occ.",null,null,0.55000000000000004,0.55000000000000004,0.55000000000000004,0.55000000000000004,0.55000000000000004,0.55000000000000004,null,null,null,"set occ.","set zone"]
[null,3,null,null,null,null,null,null,null,null,null,null,null,null,null,null,"BGWall","mass U0.15 z1, U0.123 z2","mass",23,"set occ.",null,null,0.104,7.8E-2,7.0000000000000007E-2,7.8E-2,7.0999999999999994E-2,7.0000000000000007E-2,null,null,null,"set occ.","set zone"]
[null,null,null,null,null,null,null,null,null,null,null,null,null,null,null,null,"BGWall","metal building U0.064 - all zones","metal bldg",24,"set occ.",null,null,5.1999999999999998E-2,5.1999999999999998E-2,7.0000000000000007E-2,5.1999999999999998E-2,4.3999999999999997E-2,7.0000000000000007E-2,null,null,null,"set occ.","set zone"]
[null,null,null,null,null,null,null,null,null,null,null,null,null,null,null,null,"BGWall","steel frame U0.064 - all zones","steel frame",25,"set occ.",null,null,5.5E-2,4.9000000000000002E-2,7.0000000000000007E-2,5.5E-2,4.3999999999999997E-2,7.0000000000000007E-2,null,null,null,"set occ.","set zone"]
[null,"Alteration / Change of Use",null,null,null,null,null,null,null,null,null,null,null,null,null,null,"BGWall","wood frame/other U0.057 zi, U 0.051z2","wood frame/other",26,"set occ.",null,null,5.3999999999999999E-2,5.0999999999999997E-2,7.0000000000000007E-2,5.3999999999999999E-2,4.3999999999999997E-2,7.0000000000000007E-2,null,null,null,"set occ.","set zone",null,null,null,null,"LABELS"]
[null,2,null,null,null,null,null,null,null,null,null,null,null,null,null,null,"MAXGlass","MAXGlass","MAXGlass",27,0,null,null,{"$f":"IF(OR(hpfwin=1,dlz50pct=1),0.4,0.3)","v":0.3},0.3,0.3,0.3,0.3,0.3,0.3,0.3,0.3,0,0,null,null,null,null,null,"Nres","Nres","Nres","Res","Res","Res","Refg","Refg","Refg"]
[null,0,null,null,null,null,null,null,null,null,null,null,null,null,null,null,"MAXskylight","MAXskylight","MAXskylight",28,{"$f":"INDEX(TargetUbyJurisdiction,T128,$U$94)","v":0},null,null,0.05,0.05,0.05,0.05,0.05,0.05,0.05,0.05,0.05,0,0,null,null,null,null,null,1,2,"Seattle",1,2,"Seattle",1,2,"Seattle"]
[null,null,null,null,null,null,null,null,null,null,null,null,null,null,null,null,null,null,null,null,null,null,null,null,null,null,null,null,null,null,null,null,null,null,null,null,null,"Target Label"]
[null,null,null,null,null,null,null,null,null,null,null,null,null,null,null,null,null,null,null,null,null,null,"Group ==>","Nres","Nres","Nres","Res","Res","Res","Refg","Refg","Refg",null,null,null,"Window",1,{"$f":"INDEX( $AN$130:$AY$136,AK130,$U$131)","v":"set occ."},null,{"$f":"TEXT(AN101,\"0.00#\")","v":"0.40"},"0.40","0.35","0.40","0.40","0.35","0.40","0.40","0.35","set occ.","set zone"]
[null,null,null,null,null,null,null,null,null,null,null,null,null,null,null,null,"Component","Item Name",null,"Column # (idxU) ==>",{"$f":"IF(U90=4,10,IF(U91=4,11,U93+(idxGroup-1)*3+idxZone))","v":10},null,"Zone ==>",1,2,"Seattle",1,2,"Seattle",1,2,"Seattle",null,null,null,"Window 0.2<=pf<0.5",2,"set occ.",null,{"$f":"TEXT(AN102,\"0.00#\")","v":"0.48"},"0.48","0.42","0.48","0.48","0.42","0.48","0.48","0.42","set occ.","set zone"]
[null,null,null,null,null,null,null,null,null,null,null,null,null,null,null,null,null,"Long","Short",null,"Target Label",null,"Code",null,null,null,null,null,null,null,null,null,null,null,null,"Window pf>0.5",3,"set occ.",null,{"$f":"TEXT(AN103,\"0.00#\")","v":"0.64"},"0.64","0.56","0.64","0.64","0.56","0.64","0.64","0.56","set occ.","set zone"]
[null,null,null,null,null,null,null,null,null,null,null,null,null,null,null,null,{"$f":"Q101","v":"Window"},"non-metal frame","non-metal frm",1,{"$f":"INDEX(TargetLabelByJurisdiction,T133,$U$131)","v":"set occ."},null,"nmfrm",{"$f":"CONCATENATE(\"U-\",TEXT(X101,\"0.00#\"))","v":"U-0.30"},"U-0.30","U-0.30","U-0.30","U-0.30","U-0.30","U-0.30","U-0.30","U-0.30","set occ.","set zone",null,"Skylight",4,"set occ.",null,{"$f":"TEXT(AN104,\"0.00#\")","v":"0.35"},"0.35","0.32","0.35","0.35","0.32","0.35","0.35","0.32","set occ.","set zone"]
[null,null,null,null,null,null,null,null,null,null,null,null,null,null,null,null,"Window","metal frame, fixed","metal fix",2,"set occ.",null,"mfrm",{"$f":"CONCATENATE(\"U-\",TEXT(X102,\"0.00#\"))","v":"U-0.38"},"U-0.38","U-0.38","U-0.38","U-0.38","U-0.38","U-0.38","U-0.38","U-0.38","set occ.","set zone",null,"N Window",5,"set occ.",null,{"$f":"TEXT(AN105,\"0.00#\")","v":"0.40"},"0.40","0.35","0.40","0.40","0.35","0.40","0.40","0.35","set occ.","set zone"]
[null,null,null,null,null,null,null,null,null,null,null,null,null,null,null,null,"Window","metal frame, operable","metal opp",3,"set occ.",null,"med",{"$f":"CONCATENATE(\"U-\",TEXT(X103,\"0.00#\"))","v":"U-0.40"},"U-0.40","U-0.40","U-0.40","U-0.40","U-0.40","U-0.40","U-0.40","U-0.40","set occ.","set zone",null,"N Window 0.2<=pf<0.5",6,"set occ.",null,{"$f":"TEXT(AN106,\"0.00#\")","v":"0.44"},"0.44","0.385","0.44","0.44","0.385","0.44","0.44","0.385","set occ.","set zone"]
[null,null,null,null,null,null,null,null,null,null,null,null,null,null,null,null,"Window","metal entrance door","metal frm door",4,"set occ.",null,"nc",{"$f":"CONCATENATE(\"U-\",TEXT(X104,\"0.00#\"))","v":"U-0.60"},"U-0.60","U-0.60","U-0.60","U-0.60","U-0.60","U-0.60","U-0.60","U-0.60","set occ.","set zone",null,"N Window pf>0.5",7,"set occ.",null,{"$f":"TEXT(AN107,\"0.00#\")","v":"0.48"},"0.48","0.42","0.48","0.48","0.42","0.48","0.48","0.42","set occ.","set zone"]
[null,null,null,null,null,null,null,null,null,null,null,null,null,null,null,null,"Skylight","All Types","all types",5,"set occ.",null,"wc",{"$f":"CONCATENATE(\"U-\",TEXT(X105,\"0.00#\"))","v":"U-0.50"},"U-0.50","U-0.45","U-0.50","U-0.50","U-0.45","U-0.50","U-0.50","U-0.45","set occ.","set zone"]
[null,null,null,null,null,null,null,null,null,null,null,null,null,null,null,null,"Door","Swinging","swing",6,"set occ.",null,"dr",{"$f":"CONCATENATE(\"U-\",TEXT(X106,\"0.00#\"))","v":"U-0.37"},"U-0.37","U-0.37","U-0.37","U-0.37","U-0.37","U-0.37","U-0.37","U-0.37","set occ.","set zone"]
[null,null,null,null,null,null,null,null,null,null,null,null,null,null,null,null,"Door","Roll-up or sliding","roll/slide",7,"set occ.",null,null,{"$f":"CONCATENATE(\"U-\",TEXT(X107,\"0.00#\"))","v":"U-0.37"},"U-0.37","U-0.39","U-0.37","U-0.37","U-0.39",null,null,null,"set occ.","set zone"]
[null,null,null,null,null,null,null,null,null,null,null,null,null,null,null,null,"Roof","above deck U0.034 - all zones","above deck",8,"set occ.",null,null,"U-0.034","U-0.032","U-0.026","U-0.031","U-0.031","U-0.026",null,null,null,"set occ.","set zone"]
[null,null,null,null,null,null,null,null,null,null,null,null,null,null,null,null,"Roof","metal building U0.031 - all zones","metal bldg",9,"set occ.",null,null,"U-0.031","U-0.029","U-0.027","U-0.031","U-0.031","U-0.027",null,null,null,"set occ.","set zone"]
[null,null,null,null,null,null,null,null,null,null,null,null,null,null,null,null,"Roof","attic/Other U0.027 - all zones","attic/other",10,"set occ.",null,null,"U-0.021","U-0.021","U-0.021","U-0.021","U-0.021","U-0.021",null,null,null,"set occ.","set zone"]
[null,null,null,null,null,null,null,null,null,null,null,null,null,null,null,null,"Roof","dummy","dummy",11,"set occ.",null,null,"U-0.999","U-0.999","U-0.999","U-0.999","U-0.999","U-0.999",null,null,null,"set occ.","set zone"]
[null,null,null,null,null,null,null,null,null,null,null,null,null,null,null,null,"AGWall","mass U0.15 z1, U0.123 z2","mass",12,"set occ.",null,null,"U-0.104","U-0.078","U-0.057","U-0.078","U-0.071","U-0.057",null,null,null,"set occ.","set zone"]
[null,null,null,null,null,null,null,null,null,null,null,null,null,null,null,null,"AGWall","metal building U0.064 - all zones","metal bldg",13,"set occ.",null,null,"U-0.052","U-0.052","U-0.052","U-0.052","U-0.044","U-0.052",null,null,null,"set occ.","set zone"]
[null,null,null,null,null,null,null,null,null,null,null,null,null,null,null,null,"AGWall","steel frame U0.064 - all zones","steel frame",14,"set occ.",null,null,"U-0.055","U-0.049","U-0.055","U-0.055","U-0.044","U-0.055",null,null,null,"set occ.","set zone"]
[null,null,null,null,null,null,null,null,null,null,null,null,null,null,null,null,"AGWall","wood frame/other U0.057 zi, U 0.051z2","wood frame/other",15,"set occ.",null,null,"U-0.054","U-0.051","U-0.051","U-0.054","U-0.044","U-0.051",null,null,null,"set occ.","set zone"]
[null,null,null,null,null,null,null,null,null,null,null,null,null,null,null,null,"AGWall","cmu, same as mass but with corefill then okay in z1","CMU w/ Ins. Cores",16,"set occ.",null,null,"U-0.25","U-0.123","U-0.057","U-0.09","U-0.08","U-0.057",null,null,null,"set occ.","set zone"]
[null,null,null,null,null,null,null,null,null,null,null,null,null,null,null,null,"Floor","Mass","mass",17,"set occ.",null,null,"U-0.031","U-0.031","U-0.029","U-0.031","U-0.031","U-0.029",null,null,null,"set occ.","set zone"]
[null,null,null,null,null,null,null,null,null,null,null,null,null,null,null,null,"Floor","Joist/framing","joist/frame",18,"set occ.",null,"All floors U0.029 - all zones","U-0.029","U-0.029","U-0.029","U-0.029","U-0.029","U-0.029",null,null,null,"set occ.","set zone"]
[null,null,null,null,null,null,null,null,null,null,null,null,null,null,null,null,"Floor","Wood joist/framing","Wood joist/framing",19,"set occ.",null,null,{"$f":"CONCATENATE(\"U-\",TEXT(X119,\"0.00#\"))","v":"U-0.00"},"U-0.00","U-0.025","U-0.00","U-0.00","U-0.025",null,null,null,"set occ.","set zone"]
[null,null,null,null,null,null,null,null,null,null,null,null,null,null,null,null,"Floor","Metal joist/framing","Metal joist/framing",20,"set occ.",null,null,{"$f":"CONCATENATE(\"U-\",TEXT(X120,\"0.00#\"))","v":"U-0.00"},"U-0.00","U-0.029","U-0.00","U-0.00","U-0.029",null,null,null,"set occ.","set zone"]
[null,null,null,null,null,null,null,null,null,null,null,null,null,null,null,null,"Floor",0,"Slab",21,"set occ.",null,null,{"$f":"CONCATENATE(\"U-\",TEXT(X121,\"0.00#\"))","v":"U-0.54"},"U-0.54","U-0.52","U-0.54","U-0.52","U-0.52",null,null,null,"set occ.","set zone"]
[null,null,null,null,null,null,null,null,null,null,null,null,null,null,null,null,"Floor",0,"Heated Slab",22,"set occ.",null,null,{"$f":"CONCATENATE(\"U-\",TEXT(X122,\"0.00#\"))","v":"U-0.55"},"U-0.55","U-0.55","U-0.55","U-0.55","U-0.55",null,null,null,"set occ.","set zone"]
[null,null,null,null,null,null,null,null,null,null,null,null,null,null,null,null,"BGWall","mass U0.15 z1, U0.123 z2","mass",23,"set occ.",null,null,{"$f":"CONCATENATE(\"U-\",TEXT(X123,\"0.00#\"))","v":"U-0.104"},"U-0.078","U-0.07","U-0.078","U-0.071","U-0.07",null,null,null,"set occ.","set zone"]
[null,null,null,null,null,null,null,null,null,null,null,null,null,null,null,null,"BGWall","metal building U0.064 - all zones","metal bldg",24,"set occ.",null,null,{"$f":"CONCATENATE(\"U-\",TEXT(X124,\"0.00#\"))","v":"U-0.052"},"U-0.052","U-0.07","U-0.052","U-0.044","U-0.07",null,null,null,"set occ.","set zone"]
[null,null,null,null,null,null,null,null,null,null,null,null,null,null,null,null,"BGWall","steel frame U0.064 - all zones","steel frame",25,"set occ.",null,null,{"$f":"CONCATENATE(\"U-\",TEXT(X125,\"0.00#\"))","v":"U-0.055"},"U-0.049","U-0.07","U-0.055","U-0.044","U-0.07",null,null,null,"set occ.","set zone"]
[null,null,null,null,null,null,null,null,null,null,null,null,null,null,null,null,"BGWall","wood frame/other U0.057 zi, U 0.051z2","wood frame/other",26,"set occ.",null,null,{"$f":"CONCATENATE(\"U-\",TEXT(X126,\"0.00#\"))","v":"U-0.054"},"U-0.051","U-0.07","U-0.054","U-0.044","U-0.07",null,null,null,"set occ.","set zone"]

{"sheet":"ENV-SHGC","index":7,"n_rows":51,"n_cols":14,"rows_kept":51,"cut":false,"hidden":false,"merged":[[19,6,20,6],[35,6,36,6],[10,1,10,3],[11,1,11,3],[12,1,12,3],[13,1,13,3],[14,1,14,3]]}
["SHGC Calculation",null,null,null,null,null,{"$f":"'TA1'!$C$118","v":" "},null,null,"ENV-SHGC"]
[{"$f":"'ENV-SUM'!A2","v":"2012 Seattle Energy Code Compliance Forms for Commercial Buildings including R2 & R3 over 3 stories and all R1 "},null,null,null,null,null,null,null,null,{"$f":"'ENV-SUM'!G2","v":"Revised Apr 2015"}]
[{"$f":"'ENV-SUM'!B3","v":"Project Address"},null,{"$f":"IF('ENV-SUM'!$C$3=\"1 - This address line will copy onto other forms\",\"1 - Fill this line out on ENV-SUM\",'ENV-SUM'!$C$3)","v":"1 - Fill this line out on ENV-SUM"},null,null,null,null,"Date",{"$f":"TEXT('ENV-SUM'!$G$3,\"mm/dd/yyyy\")","v":"01/01/2014"}]
["Fenestration Area as % gross above-grade wall area",null,null,null,{"$f":"IF('ENV-SUM'!G19>0,'ENV-SUM'!G19,0)","v":""},null,{"$f":"'TA1'!J27","v":""},"For DPD Use"]
["Skylight Area as % gross roof area",null,null,null,{"$f":"IF('ENV-SUM'!G21>0,'ENV-SUM'!G21,0)","v":""},null,{"$f":"'TA1'!D80","v":0}]
["Vertical  Fenestration Alternates:",null,{"$f":"'TA1'!B111","v":"None Selected on ENV-SUM"}]
[]
[]
["  Skylights",null,null,null,null,"Proposed SHGC",null,"Target SHGC"]
["Provide source of SHGC, page/plan # of assembly detail & ID",null,null,null,"SHGC","x Area (A)","= SHGC x A","SHGC","x Area (A) =","SHGC x A"]
["  ID:",null,null,null,null,null,{"$f":"IF(AND(F11=0,E11=0),0,IF(OR(F11=0,E11=0),NA(),F11*E11))","v":0},{"$f":"'TA1'!AL104","v":"set occ."},{"$f":"'TA1'!J95","v":0},{"$f":"IF(TYPE(H11*I11)<>1,0,H11*I11)","v":0}]
["  ID:",null,null,null,null,null,{"$f":"IF(AND(F12=0,E12=0),0,IF(OR(F12=0,E12=0),NA(),F12*E12))","v":0},"SHGC",null,{"$f":"'TA1'!AL133","v":"set occ."}]
["  ID:",null,null,null,null,null,{"$f":"IF(AND(F13=0,E13=0),0,IF(OR(F13=0,E13=0),NA(),F13*E13))","v":0}]
["  ID:",null,null,null,null,null,{"$f":"IF(AND(F14=0,E14=0),0,IF(OR(F14=0,E14=0),NA(),F14*E14))","v":0}]
["  ID:",null,null,null,null,null,{"$f":"IF(AND(F15=0,E15=0),0,IF(OR(F15=0,E15=0),NA(),F15*E15))","v":0},null,null,null,null,null,0]
[null,null,null,null,"Totals",{"$f":"SUM(F10:F15)","v":0},{"$f":"SUM(G10:G15)","v":0},"Totals",{"$f":"SUM(I10:I15)","v":0},{"$f":"SUM(J10:J15)","v":0}]
[]
[null,null,null,null,null,null,null,null,null,{"$f":"IF(ABS(F16-'TA1'!F73)>0.1,IF(F16>'TA1'!F73,CONCATENATE(\"More proposed skylight area here than ENV-UA - Remove  \",TEXT('TA1'!F73-F16,\"0.0\")),CONCATENATE(\"Less proposed skylight area here than ENV-UA - Add  \",TEXT('TA1'!F73-F16,\"0.0\" )) ),\" \")","v":" "}]
[]
[" All Non-North Vertical Fenestration+",null,null,null,"Proposed SHGC",null,"PF Category","Target SHGC ++"]
[null,null,"PF","SHGC*","x Area (A)","= SHGC x A",null,"SHGC","x Area (A) =","SHGC x A"]
["  ID:",null,null,null,null,{"$f":"IF(AND(E22=0,D22=0),0,IF(OR(E22=0,D22=0),NA(),E22*D22))","v":0},"PF < 0.2",{"$f":"'TA1'!AL101","v":"set occ."},{"$f":"'TA1'!J58","v":0},{"$f":"IF(TYPE(H22*I22)<>1,0,H22*I22)","v":0}]
["  ID:",null,null,null,null,0,"0.2≤PF<0.5",{"$f":"'TA1'!AL102","v":"set occ."},{"$f":"'TA1'!J59","v":0},{"$f":"IF(TYPE(H23*I23)<>1,0,H23*I23)","v":0}]
["  ID:",null,null,null,null,0,"PF ≥ 0.5",{"$f":"'TA1'!AL103","v":"set occ."},{"$f":"'TA1'!J60","v":0},{"$f":"IF(TYPE(H24*I24)<>1,0,H24*I24)","v":0}]
["  ID:",null,null,null,null,0]
["  ID:",null,null,null,null,0]
["  ID:",null,null,null,null,0]
["  ID:",null,null,null,null,0]
["  ID:",null,null,null,null,0]
["  ID:",null,null,null,null,0]
["  ID:",null,null,null,null,0,null,null,null,null,null,null,0]
[null,null,null,"Totals",{"$f":"SUM(E21:E31)","v":0},{"$f":"SUM(F21:F31)","v":0},null,"Totals",{"$f":"SUM(I21:I31)","v":0},{"$f":"SUM(J21:J31)","v":0}]
[]
[]
[]
["  North Vertical Fenestration+",null,null,null,"Proposed SHGC",null,"PF Category","Target SHGC++"]
[null,null,"PF","SHGC*","x Area (A)","= SHGC x A",null,"SHGC","x Area (A) =","SHGC x A"]
["  ID:",null,null,null,null,{"$f":"IF(AND(E38=0,D38=0),0,IF(OR(E38=0,D38=0),NA(),E38*D38))","v":0},"PF < 0.2",{"$f":"'TA1'!AL105","v":"set occ."},{"$f":"'TA1'!J62","v":0},{"$f":"IF(TYPE(H38*I38)<>1,0,H38*I38)","v":0}]
["  ID:",null,null,null,null,0,"0.2≤PF<0.5",{"$f":"'TA1'!AL106","v":"set occ."},{"$f":"'TA1'!J63","v":0},{"$f":"IF(TYPE(H39*I39)<>1,0,H39*I39)","v":0}]
["  ID:",null,null,null,null,0,"PF ≥ 0.5",{"$f":"'TA1'!AL107","v":"set occ."},{"$f":"'TA1'!J64","v":0},{"$f":"IF(TYPE(H40*I40)<>1,0,H40*I40)","v":0}]
["  ID:",null,null,null,null,0]
["  ID:",null,null,null,null,0]
["  ID:",null,null,null,null,{"$f":"IF(AND(E43=0,D43=0),0,IF(OR(E43=0,D43=0),NA(),E43*D43))","v":0},null,null,null,null,null,null,null,0]
["  ID:",null,null,null,null,0,null,null,null,null,null,null,0,0]
[null,null,null,"North Total",{"$f":"SUM(E37:E44)","v":0},{"$f":"SUM(F37:F44)","v":0},{"$f":"SUM(G37:G44)","v":0},null,{"$f":"SUM(I37:I44)","v":0},{"$f":"SUM(J37:J44)","v":0}]
[]
[null,null,null,null,null,"Area","SHGC x A",null,"Area","SHGC x A"]
[null,null,null,null,"Grand\nTotal",{"$f":"F16+E32+E45","v":0},{"$f":"G16+F32+F45","v":0},"Grand\nTotal",{"$f":"I16+I32+I45","v":0},{"$f":"J16+J32+J45","v":0}]
[]
[null,null,null,null,null,null,null,null,null,{"$f":"IF(ABS((E32+E45)-'TA1'!F15)>0.1,IF((E32+E45)>'TA1'!F15,CONCATENATE(\"More proposed vertical fenestration here than ENV-UA - Remove  \",TEXT('TA1'!F15-(E32+E45),\"0.0\")),CONCATENATE(\"Less proposed vertical fenestration here than ENV-UA: Add  \",TEXT('TA1'!F15-(E32+E45),\"0.0\" )) ),\"\")","v":""}]
["Component Performance Compliance (SHGC)",null,null,null,null,null,null,null,null,{"$f":"IF(OccGroup=3,\"Occupancy Group not selected\",IF(AND(J50=\"\",G48>0,J48>0),IF(G48>J48+0.00001,\"SHGC DOES NOT COMPLY\",\"SHGC COMPLIES\"),\"\"))","v":"Occupancy Group not selected"}]

{"sheet":"ENV-CHK","index":8,"n_rows":127,"n_cols":6,"rows_kept":127,"cut":false,"hidden":false,"merged":[[3,0,3,5],[86,0,86,5],[14,0,15,0],[14,1,15,1],[14,2,15,2],[14,4,15,4],[16,0,20,0],[16,1,20,1],[16,2,20,2],[16,4,20,4],[16,5,20,5],[22,0,27,0],[22,1,27,1],[22,2,27,2],[22,4,27,4],[22,5,27,5],[28,0,30,0],[28,1,30,1],[28,2,30,2],[28,4,30,4],[28,5,30,5],[32,0,34,0],[32,1,34,1],[32,2,34,2],[32,4,34,4],[32,5,34,5],[35,0,37,0],[35,1,37,1],[35,2,37,2],[35,4,37,4],[35,5,37,5],[38,5,40,5],[38,4,40,4],[38,2,40,2],[38,1,40,1],[38,0,40,0],[58,0,61,0],[58,1,61,1],[58,2,61,2],[58,4,61,4],[58,5,61,5],[49,0,51,0],[49,1,51,1],[49,2,51,2],[49,4,51,4],[49,5,51,5],[52,5,54,5],[52,4,54,4],[52,2,54,2],[52,1,54,1],[52,0,54,0],[55,0,56,0],[55,1,56,1],[55,2,56,2],[55,4,56,4],[55,5,56,5],[63,0,64,0],[63,1,64,1],[63,2,64,2],[63,4,64,4],[63,5,64,5],[65,5,67,5],[65,4,67,4],[65,2,67,2],[65,1,67,1],[65,0,67,0],[68,0,69,0],[68,1,69,1],[68,2,69,2],[68,4,69,4],[68,5,69,5],[14,5,15,5],[75,5,76,5],[75,4,76,4],[75,0,76,0],[75,1,76,1],[75,2,76,2],[73,0,74,0],[73,1,74,1],[73,2,74,2],[73,4,74,4],[73,5,74,5],[70,5,71,5],[70,4,71,4],[70,2,71,2],[70,1,71,1],[70,0,71,0]]}
["Building Permit Plans Checklist, pg. 1",null,null,null,null,"ENV-CHK"]
[{"$f":"ReadMe!A2","v":"2012 Seattle Energy Code Compliance Forms for Commercial Buildings including R2 & R3 over 3 stories and all R1 "},null,null,null,null,{"$f":"ReadMe!B3","v":"Revised Apr 2015"}]
["Project Address",null,{"$f":"IF('ENV-SUM'!$C$3=\"1 - This address line will copy onto other forms\",\"1 - Fill this line out on ENV-SUM\",'ENV-SUM'!$C$3)","v":"1 - Fill this line out on ENV-SUM"},null,"Date",{"$f":"'ENV-SUM'!G3","v":"2014-01-01"}]
["The following information is necessary to check a building permit application for compliance with the building envelope requirements in the \nSeattle Energy Code, Commercial Provisions."]
["Applicability (yes,no,na) ","Code Section","Component","Compliance information required in permit documents","Location in Documents","DPD Notes"]
["SCOPE "]
[null,"C101.5.2","Low energy spaces","Low energy spaces identified on plans"]
[null,"C101.5.2.1\nC402.1.4","Semi-heated spaces","Semi-heated spaces identified on plans"]
[null,"C402.5 C402.6","Cooler and freezer spaces","Walk-in and refrigerated warehouse cooler and freezer spaces identified on plans"]
[null,"C101.4.6","Mixed occupancy","Spaces with different occupancy requirements identified on plans"]
[null,"C101.4.4 C101.4.5","Change of occupancy/space conditioning","Existing F, S and U-occupancy building spaces undergoing a change of occupancy, space conditioning, or conversion to a residential dwelling unit from another occupancy that require compliance are identified on plans"]
["ENVELOPE PROVISIONS"]
[null,"C303.1","Insulation identification","Indicate identification mark shall be applied to all insulation materials"]
[null,"C303.1.3 C402.4.3","Fenestration product rating","Fenestration products shall be labeled with rated U-factor, SHGC, VT, and  leakage rating"]
[null,"C303.1.1 C402.2 ","General insulation installation","Indicate installation methods, thicknesses, densities and clearances to achieve the intended R-value of all insulation materials; "]
[null,null,null,"Where two or more layers of rigid insulation will be used, indicate that edge joints between layers are staggered"]
[null,"C402.2.1","Roof assembly insulation","Indicate R-value(s) of cavity/continuous insulation on roof sections;  "]
[null,null,null,"Indicate framing materials on roof sections; "]
[null,null,null,"Indicate method of framing for ceilings below vented attics and vaulted ceilings per A102.2 (std, adv);"]
[null,null,null,"Provide area-weighted calculations for sloped insulation installed entirely above deck;"]
[null,null,null,"Indicate R-values for thermal spacers and each insulation layer, and liner system (LS) method for metal building roofs"]
[null,"C402.2.1","Skylight curb insulation","Indicate curb insulation R-value on roof section if not included in skylight NFRC rating"]
[null,"C402.2.3 C402.2.4 C303.2.1","Above/below grade wall insulation","Indicate R-value(s) of cavity/continuous insulation on wall sections;  "]
[null,null,null,"Indicate framing materials on wall sections; "]
[null,null,null,"Indicate method of framing for wood const per A103.2 (std, int, adv);"]
[null,null,null,"Indicate mass of masonry walls;"]
[null,null,null,"Indicate loose-fill core insulation material, percentage of cores filled, and frequency of grouted cores and bond beams for masonry walls;"]
[null,null,null,"Indicate method of protection of exposed exterior basement/crawlspace wall insulation"]
[null,"C402.5 C402.6","Walk-in/refrigerated warehouse cooler and freezer insulation","Indicate insulation R-values of ceilings, walls, doors, floors on sections;"]
[null,null,null,"Indicate method of minimizing door infiltration;"]
[null,null,null,"Indicate type(s) of transparent doors and windows"]
[null,"C402.2.7","Opaque doors","Indicate rated U-factor (swinging) or R-value (roll-up/sliding) on wall sections - applies to doors with less than 50% glazed area"]
[null,"C402.2.5","Floor over outdoor or unconditioned space insulation ","Indicate R-value(s) of cavity/continuous insulation on floor sections;"]
[null,null,null,"Indicate framing material on floor sections;"]
[null,null,null,"Indicate mass of masonry floors"]
[null,"C402.2.6 C303.2.1","Slab-on-grade floor insulation","Indicate R-value of continuous insulation on wall section or foundation detail;"]
[null,null,null,"Indicate insulation extends down vertically and/or horizontally the required distance from top of slab;"]
[null,null,null,"Indicate method of protection of exposed exterior slab edge insulation"]
[null,"C402.2.6 C303.2.1","Radiantly heated slab-on-grade floor insulation ","Indicate R-value of continuous insulation on wall section or foundation detail;"]
[null,null,null,"Indicate insulation extends down vertically from top of slab and then horizontally under the entire slab;"]
[null,null,null,"Indicate method of protection of exposed exterior slab edge insulation"]
[null,"C402.2.8","Radiant heating system insulation","Indicate insulation R-value behind radiant panels, U-bend/headers and bottom surface of radiantly heated floors (other than radiantly heated slab-on-grade) "]
[]
["Building Permit Plans Checklist, pg. 2",null,null,null,null,"ENV-CHK"]
["2012 Washington State Energy Code Compliance Forms for Commercial Buildings including R2 & R3 over 3 stories and all R1"]
["Project Address",null,{"$f":"IF('ENV-SUM'!$C$3=\"1 - This address line will copy onto other forms\",\"1 - Fill this line out on ENV-SUM\",'ENV-SUM'!$C$3)","v":"1 - Fill this line out on ENV-SUM"},null,"Date",{"$f":"F3","v":"2014-01-01"}]
["Applicability (yes,no,na) ","Code Section","Component","Compliance information required in permit documents","Location in Documents","Building Department Notes"]
[null,"C402.3.1","Vertical fenestration maximum area","Provide calculation for total vertical fenestration area as percentage of gross above grade wall area"]
[null,"C402.3.1.2","Skylight maximum area","Provide calculation for total skylight area as percentage of gross roof area"]
[null,"C402.3.3 C402.3.1.3 C303.1.3","U-factors, SHGC and VT for all fenestration assemblies","Indicate U-factors, SHGC and VT values in fenestration schedules;"]
[null,null,null,"An area-weighted U-value may be used for all fenestration elements that qualify within the same fenestration category per Table C402.3;"]
[null,null,null,"Indicate if values are NFRC or default. If default then specify frame type, glazing layers, gap width, low-e coatings, gas-fill."]
[null,"C402.3.1.1 Chap. 2 Definition","Increased max. vertical fenestration area with daylighting controls","Provide calculations showing that percentage of overall conditioned floor area in the daylight zone is equal to or greater than 50%; "]
[null,null,null,"Indicate method of daylighting control in lighting equipment schedules;"]
[null,null,null,"Indicate VT of vertical fenestration is at least 1.1 times the rated SHGC"]
[null,"C402.3.1.2","Increased max. vertical fenestration area with high-performance glazing","Indicate high performance U-factors and SHGC values in fenestration schedules; "]
[null,null,null,"An area-weighted U-value may be used for all fenestration elements that qualify within the same fenestration category per this section"]
[null,"C402.3.3 C402.3.3.1","Permanent shading devices","Provide projection factor calculations (Equation C4-2) and associated SHGC multipliers for north and non-north orientations"]
[null,"C402.3.2","Single story spaces requiring skylights","Provide calculations for percentage of conditioned floor area located within a skylight daylight zone;"]
[null,null,null,"Provide calculations for percentage of skylight area to daylight zone under skylights, OR;"]
[null,null,null,"Provide calculations for percentage of overall skylight effective aperture (Equation C4-1);"]
[null,null,null,"Indicate haze factor of skylight glazing material or diffuser"]
["AIR LEAKAGE"]
[null,"C402.4.1.1 C402.4.2","Air barrier construction and sealing","Indicate location of continuous air barrier on plans and sections;"]
[null,null,null,"Provide details for all joints, transitions in materials, penetrations in air barrier and note method of sealing (caulked, gasketed, or other approved method)  "]
[null,"C402.4.5.1","Stairway and shaft vents","Indicate locations of all stairway and shaft vents;  "]
[null,null,null,"Provide leakage rating of motorized dampers in mechanical equipment schedules;"]
[null,null,null,"Indicate method of emergency operation - activation of fire alarm or interruption of power"]
[null,"C402.4.5.2","Outdoor air intakes, exhausts and relief openings","Indicate locations of all outside air intakes, exhausts and relief outlets, including those integral to mechanical equipment;"]
[null,null,null,"Provide in mechanical equipment schedules leakage rating of dampers, identify whether motorized or gravity, and note any exceptions taken "]
[null,"C402.4.8","Recessed lighting in building envelope ","Indicate IC rating of fixtures in lighting equipment schedules;"]
[null,null,null,"Indicate method of sealing between light fixture housing and wall or ceiling"]
[null,"C402.4.6","Loading dock seals","Indicate weather seal at cargo and loading dock doors"]
[null,"C402.4.7","Vestibules","Indicate locations and dimensions of vestibules;"]
[null,null,null,"For unconditioned vestibules, indicate which envelope assembly (interior or exterior) complies with the requirements for a conditioned space"]
[null,"C402.4 - .1.2.3","Air barrier building  test","Indicate air barrier test method in accordance with ASTM E779 or approved equivalent; "]
[null,null,null,"Include the following requirements in project documents: (1) air barrier test report shall be submitted to jurisdiction once test is completed; (2) if test results exceed 0.4 cfm/ft2 at 0.3 in. wg then visually inspect air barrier and seal noted sources of leakage; (3) submit a follow-up report to jurisdiction noting corrective measures taken"]
["If \"no\" is selected for any question, provide explanation:  "]
[]
[]
[]
[]
[]
[]
[]
[]
["End of Building Permit Plans Checklist"]
[]
[]
["  Yes"]
["  No"]
["  N.A."]
[]
[]
[]
[]
[]
[]
[]
[]
[]
[]
[]
[]
[]
[]
[]
[]
[]
[]
[]
[]
[]
[]
[]
[]
[]
[]
[]
[]
[]
[]
[]
[]
["na"]
["no"]
["yes"]